Workbook

Sheet Main
F2: CQG iShares Core S&P U.S. Value ETF Performance | AB2: =RTD("cqg.rtd", ,"SystemInfo", "Linetime") -> 42873.39201
B5: Exchange Traded Funds Performance | S5: Top 15 Performing Companies
B6: Symbol | C6: Description | H6: Last | I6: NC | J6: %NC | K6: NC/ATR | L6: Open | M6: High | N6: Low | O6: Volume | Q6: Ratio
B7: IUSV | C7: =RTD("cqg.rtd", ,"ContractData",B7, "LongDescription",, "T") -> iShares Core U.S. Value ETF | H7: =RTD("cqg.rtd", ,"ContractData",B7, "LastTradeToday",, "T") -> 49.49 | I7: =RTD("cqg.rtd", ,"ContractData",B7, "NetLastTradeToday",, "T") -> -0.04 | J7: =RTD("cqg.rtd", ,"ContractData",B7, "PerCentNetLastTrade",, "T")/100 -> -0.0008075913588 | K7: =I7/RTD("cqg.rtd",,"StudyData",B7, "ATR", "MaType=Sim,Period=10", "ATR","D","-1","ALL",,,"FALSE","T")/100 -> -0.001179941003 | L7: =RTD("cqg.rtd", ,"ContractData",B7, "OPen",, "T") -> 49.46 | M7: =RTD("cqg.rtd", ,"ContractData", B7, "HIgh",, "T") -> 49.54 | N7: =RTD("cqg.rtd", ,"ContractData",B7, "LOw",, "T") -> 49.35 | O7: =RTD("cqg.rtd", ,"ContractData",B7, "T_CVol",, "T") -> 27271 | Q7: =IFERROR(O7/RTD("cqg.rtd",,"StudyData",B7, "MA", "InputChoice=Vol,MAType=Sim,Period=21", "MA","D","-1","all",,,,"T"),"") -> 0.1217377201
B8: SPY | C8: =RTD("cqg.rtd", ,"ContractData",B8, "LongDescription",, "T") -> SPDR S&P 500 | H8: =RTD("cqg.rtd", ,"ContractData",B8, "LastTradeToday",, "T") -> 236.42 | I8: =RTD("cqg.rtd", ,"ContractData",B8, "NetLastTradeToday",, "T") -> 0.6 | J8: =RTD("cqg.rtd", ,"ContractData",B8, "PerCentNetLastTrade",, "T")/100 -> 0.002544313459 | K8: =I8/RTD("cqg.rtd",,"StudyData",B8, "ATR", "MaType=Sim,Period=10", "ATR","D","-1","ALL",,,"FALSE","T")/100 -> 0.004187020237 | L8: =RTD("cqg.rtd", ,"ContractData",B8, "OPen",, "T") -> 235.73 | M8: =RTD("cqg.rtd", ,"ContractData", B8, "HIgh",, "T") -> 236.61 | N8: =RTD("cqg.rtd", ,"ContractData",B8, "LOw",, "T") -> 235.43 | O8: =RTD("cqg.rtd", ,"ContractData",B8, "T_CVol",, "T") -> 18349380 | Q8: =IFERROR(O8/RTD("cqg.rtd",,"StudyData",B8, "MA", "InputChoice=Vol,MAType=Sim,Period=21", "MA","D","-1","all",,,,"T"),"") -> 0.2489822453
B9: XLF | C9: =RTD("cqg.rtd", ,"ContractData",B9, "LongDescription",, "T") -> Financial Select Sector SPDR | H9: =RTD("cqg.rtd", ,"ContractData",B9, "LastTradeToday",, "T") -> 23.17 | I9: =RTD("cqg.rtd", ,"ContractData",B9, "NetLastTradeToday",, "T") -> 0.11 | J9: =RTD("cqg.rtd", ,"ContractData",B9, "PerCentNetLastTrade",, "T")/100 -> 0.004770164788 | K9: =I9/RTD("cqg.rtd",,"StudyData",B9, "ATR", "MaType=Sim,Period=10", "ATR","D","-1","ALL",,,"FALSE","T")/100 -> 0.003793103448 | L9: =RTD("cqg.rtd", ,"ContractData",B9, "OPen",, "T") -> 23.03 | M9: =RTD("cqg.rtd", ,"ContractData", B9, "HIgh",, "T") -> 23.22 | N9: =RTD("cqg.rtd", ,"ContractData",B9, "LOw",, "T") -> 23.02 | O9: =RTD("cqg.rtd", ,"ContractData",B9, "T_CVol",, "T") -> 23487308 | Q9: =IFERROR(O9/RTD("cqg.rtd",,"StudyData",B9, "MA", "InputChoice=Vol,MAType=Sim,Period=21", "MA","D","-1","all",,,,"T"),"") -> 0.3318747258
B10: GDX | C10: =RTD("cqg.rtd", ,"ContractData",B10, "LongDescription",, "T") -> Market Vectors Gold Miners ETF | H10: =RTD("cqg.rtd", ,"ContractData",B10, "LastTradeToday",, "T") -> 22.75 | I10: =RTD("cqg.rtd", ,"ContractData",B10, "NetLastTradeToday",, "T") -> -0.62 | J10: =RTD("cqg.rtd", ,"ContractData",B10, "PerCentNetLastTrade",, "T")/100 -> -0.02652973898 | K10: =I10/RTD("cqg.rtd",,"StudyData",B10, "ATR", "MaType=Sim,Period=10", "ATR","D","-1","ALL",,,"FALSE","T")/100 -> -0.012109375 | L10: =RTD("cqg.rtd", ,"ContractData",B10, "OPen",, "T") -> 23.11 | M10: =RTD("cqg.rtd", ,"ContractData", B10, "HIgh",, "T") -> 23.17 | N10: =RTD("cqg.rtd", ,"ContractData",B10, "LOw",, "T") -> 22.55 | O10: =RTD("cqg.rtd", ,"ContractData",B10, "T_CVol",, "T") -> 16849061 | Q10: =IFERROR(O10/RTD("cqg.rtd",,"StudyData",B10, "MA", "InputChoice=Vol,MAType=Sim,Period=21", "MA","D","-1","all",,,,"T"),"") -> 0.2710663548
B11: FXI | C11: =RTD("cqg.rtd", ,"ContractData",B11, "LongDescription",, "T") -> iShares China Large-Cap ETF | H11: =RTD("cqg.rtd", ,"ContractData",B11, "LastTradeToday",, "T") -> 38.99 | I11: =RTD("cqg.rtd", ,"ContractData",B11, "NetLastTradeToday",, "T") -> 0.07 | J11: =RTD("cqg.rtd", ,"ContractData",B11, "PerCentNetLastTrade",, "T")/100 -> 0.001798561151 | K11: =I11/RTD("cqg.rtd",,"StudyData",B11, "ATR", "MaType=Sim,Period=10", "ATR","D","-1","ALL",,,"FALSE","T")/100 -> 0.00151187905 | L11: =RTD("cqg.rtd", ,"ContractData",B11, "OPen",, "T") -> 38.72 | M11: =RTD("cqg.rtd", ,"ContractData", B11, "HIgh",, "T") -> 39.02 | N11: =RTD("cqg.rtd", ,"ContractData",B11, "LOw",, "T") -> 38.66 | O11: =RTD("cqg.rtd", ,"ContractData",B11, "T_CVol",, "T") -> 3922285 | Q11: =IFERROR(O11/RTD("cqg.rtd",,"StudyData",B11, "MA", "InputChoice=Vol,MAType=Sim,Period=21", "MA","D","-1","all",,,,"T"),"") -> 0.2335166582
B12: IWM | C12: =RTD("cqg.rtd", ,"ContractData",B12, "LongDescription",, "T") -> iShares Russell 2000 ETF | H12: =RTD("cqg.rtd", ,"ContractData",B12, "LastTradeToday",, "T") -> 134.8 | I12: =RTD("cqg.rtd", ,"ContractData",B12, "NetLastTradeToday",, "T") -> -0.08 | J12: =RTD("cqg.rtd", ,"ContractData",B12, "PerCentNetLastTrade",, "T")/100 -> -0.0005931198102 | K12: =I12/RTD("cqg.rtd",,"StudyData",B12, "ATR", "MaType=Sim,Period=10", "ATR","D","-1","ALL",,,"FALSE","T")/100 -> -0.0004618937644 | L12: =RTD("cqg.rtd", ,"ContractData",B12, "OPen",, "T") -> 134.57 | M12: =RTD("cqg.rtd", ,"ContractData", B12, "HIgh",, "T") -> 135.25 | N12: =RTD("cqg.rtd", ,"ContractData",B12, "LOw",, "T") -> 134.23 | O12: =RTD("cqg.rtd", ,"ContractData",B12, "T_CVol",, "T") -> 8687651 | Q12: =IFERROR(O12/RTD("cqg.rtd",,"StudyData",B12, "MA", "InputChoice=Vol,MAType=Sim,Period=21", "MA","D","-1","all",,,,"T"),"") -> 0.3105922404
B13: IWO | C13: =RTD("cqg.rtd", ,"ContractData",B13, "LongDescription",, "T") -> iShares Russell 2000 Growth ETF | H13: =RTD("cqg.rtd", ,"ContractData",B13, "LastTradeToday",, "T") -> 161.21 | I13: =RTD("cqg.rtd", ,"ContractData",B13, "NetLastTradeToday",, "T") -> 0.2 | J13: =RTD("cqg.rtd", ,"ContractData",B13, "PerCentNetLastTrade",, "T")/100 -> 0.001242158872 | K13: =I13/RTD("cqg.rtd",,"StudyData",B13, "ATR", "MaType=Sim,Period=10", "ATR","D","-1","ALL",,,"FALSE","T")/100 -> 0.0009925558313 | L13: =RTD("cqg.rtd", ,"ContractData",B13, "OPen",, "T") -> 160.56 | M13: =RTD("cqg.rtd", ,"ContractData", B13, "HIgh",, "T") -> 161.63 | N13: =RTD("cqg.rtd", ,"ContractData",B13, "LOw",, "T") -> 160.19 | O13: =RTD("cqg.rtd", ,"ContractData",B13, "T_CVol",, "T") -> 154746 | Q13: =IFERROR(O13/RTD("cqg.rtd",,"StudyData",B13, "MA", "InputChoice=Vol,MAType=Sim,Period=21", "MA","D","-1","all",,,,"T"),"") -> 0.2954455882
B14: QQQ | C14: =RTD("cqg.rtd", ,"ContractData",B14, "LongDescription",, "T") -> Powershares QQQ Trust | H14: =RTD("cqg.rtd", ,"ContractData",B14, "LastTradeToday",, "T") -> 137.13 | I14: =RTD("cqg.rtd", ,"ContractData",B14, "NetLastTradeToday",, "T") -> 1.06 | J14: =RTD("cqg.rtd", ,"ContractData",B14, "PerCentNetLastTrade",, "T")/100 -> 0.007790108033 | K14: =I14/RTD("cqg.rtd",,"StudyData",B14, "ATR", "MaType=Sim,Period=10", "ATR","D","-1","ALL",,,"FALSE","T")/100 -> 0.0106 | L14: =RTD("cqg.rtd", ,"ContractData",B14, "OPen",, "T") -> 136.06 | M14: =RTD("cqg.rtd", ,"ContractData", B14, "HIgh",, "T") -> 137.38 | N14: =RTD("cqg.rtd", ,"ContractData",B14, "LOw",, "T") -> 135.87 | O14: =RTD("cqg.rtd", ,"ContractData",B14, "T_CVol",, "T") -> 11388981 | Q14: =IFERROR(O14/RTD("cqg.rtd",,"StudyData",B14, "MA", "InputChoice=Vol,MAType=Sim,Period=21", "MA","D","-1","all",,,,"T"),"") -> 0.5020400036
B15: XLE | C15: =RTD("cqg.rtd", ,"ContractData",B15, "LongDescription",, "T") -> Energy Select Sector SPDR | H15: =RTD("cqg.rtd", ,"ContractData",B15, "LastTradeToday",, "T") -> 67.19 | I15: =RTD("cqg.rtd", ,"ContractData",B15, "NetLastTradeToday",, "T") -> -0.08 | J15: =RTD("cqg.rtd", ,"ContractData",B15, "PerCentNetLastTrade",, "T")/100 -> -0.001189237402 | K15: =I15/RTD("cqg.rtd",,"StudyData",B15, "ATR", "MaType=Sim,Period=10", "ATR","D","-1","ALL",,,"FALSE","T")/100 -> -0.0008385744235 | L15: =RTD("cqg.rtd", ,"ContractData",B15, "OPen",, "T") -> 66.97 | M15: =RTD("cqg.rtd", ,"ContractData", B15, "HIgh",, "T") -> 67.28 | N15: =RTD("cqg.rtd", ,"ContractData",B15, "LOw",, "T") -> 66.72 | O15: =RTD("cqg.rtd", ,"ContractData",B15, "T_CVol",, "T") -> 2503368 | Q15: =IFERROR(O15/RTD("cqg.rtd",,"StudyData",B15, "MA", "InputChoice=Vol,MAType=Sim,Period=21", "MA","D","-1","all",,,,"T"),"") -> 0.1556769188
B16: USO | C16: =RTD("cqg.rtd", ,"ContractData",B16, "LongDescription",, "T") -> United States Oil Fund | H16: =RTD("cqg.rtd", ,"ContractData",B16, "LastTradeToday",, "T") -> 10.18 | I16: =RTD("cqg.rtd", ,"ContractData",B16, "NetLastTradeToday",, "T") -> 0 | J16: =RTD("cqg.rtd", ,"ContractData",B16, "PerCentNetLastTrade",, "T")/100 -> 0 | K16: =I16/RTD("cqg.rtd",,"StudyData",B16, "ATR", "MaType=Sim,Period=10", "ATR","D","-1","ALL",,,"FALSE","T")/100 -> 0 | L16: =RTD("cqg.rtd", ,"ContractData",B16, "OPen",, "T") -> 10.09 | M16: =RTD("cqg.rtd", ,"ContractData", B16, "HIgh",, "T") -> 10.19 | N16: =RTD("cqg.rtd", ,"ContractData",B16, "LOw",, "T") -> 10.08 | O16: =RTD("cqg.rtd", ,"ContractData",B16, "T_CVol",, "T") -> 2371778 | Q16: =IFERROR(O16/RTD("cqg.rtd",,"StudyData",B16, "MA", "InputChoice=Vol,MAType=Sim,Period=21", "MA","D","-1","all",,,,"T"),"") -> 0.07629892956
C17: Top 15 Description | H17: Last | I17: NC | J17: %NC | K17: NC/ATR | L17: Open | M17: High | N17: Low | O17: Volume | Q17: Ratio
A18: =TRIM(IUSV!I1) -> S.US.LB | B18: News | C18: =RTD("cqg.rtd", ,"ContractData",A18, "LongDescription",, "T")&" ("&RIGHT(A18,LEN(A18)-5)&")" -> L Brands, Inc. (LB) | H18: =RTD("cqg.rtd", ,"ContractData",A18, "LastTradeToday",, "T") -> 50.31 | I18: =RTD("cqg.rtd", ,"ContractData",A18, "NetLastTradeToday",, "T") -> 1.91 | J18: =RTD("cqg.rtd", ,"ContractData",A18, "PerCentNetLastTrade",, "T")/100 -> 0.03946280992 | K18: =I18/RTD("cqg.rtd",,"StudyData",A18, "ATR", "MaType=Sim,Period=10", "ATR","D","-1","ALL",,,"FALSE","T")/100 -> 0.01103408434 | L18: =RTD("cqg.rtd", ,"ContractData",A18, "OPen",, "T") -> 51.78 | M18: =RTD("cqg.rtd", ,"ContractData", A18, "HIgh",, "T") -> 53.13 | N18: =RTD("cqg.rtd", ,"ContractData",A18, "LOw",, "T") -> 50.05 | O18: =RTD("cqg.rtd", ,"ContractData",A18, "T_CVol",, "T") -> 2991975 | Q18: =IFERROR(O18/RTD("cqg.rtd",,"StudyData",A18, "MA", "InputChoice=Vol,MAType=Sim,Period=21", "MA","D","-1","all",,,,"T"),"") -> 0.7102466196 | R18: =IUSV!Q1 -> https://finance.yahoo.com/quote/LB
A19: =TRIM(IUSV!I2) -> S.US.VRTX | B19: News | C19: =RTD("cqg.rtd", ,"ContractData",A19, "LongDescription",, "T")&" ("&RIGHT(A19,LEN(A19)-5)&")" -> Vertex Pharmaceuticals Incorporated (VRTX) | H19: =RTD("cqg.rtd", ,"ContractData",A19, "LastTradeToday",, "T") -> 118.42 | I19: =RTD("cqg.rtd", ,"ContractData",A19, "NetLastTradeToday",, "T") -> 4.04 | J19: =RTD("cqg.rtd", ,"ContractData",A19, "PerCentNetLastTrade",, "T")/100 -> 0.03532086029 | K19: =I19/RTD("cqg.rtd",,"StudyData",A19, "ATR", "MaType=Sim,Period=10", "ATR","D","-1","ALL",,,"FALSE","T")/100 -> 0.01469625318 | L19: =RTD("cqg.rtd", ,"ContractData",A19, "OPen",, "T") -> 115.55 | M19: =RTD("cqg.rtd", ,"ContractData", A19, "HIgh",, "T") -> 118.61 | N19: =RTD("cqg.rtd", ,"ContractData",A19, "LOw",, "T") -> 115.42 | O19: =RTD("cqg.rtd", ,"ContractData",A19, "T_CVol",, "T") -> 446404 | Q19: =IFERROR(O19/RTD("cqg.rtd",,"StudyData",A19, "MA", "InputChoice=Vol,MAType=Sim,Period=21", "MA","D","-1","all",,,,"T"),"") -> 0.2605688513 | R19: =IUSV!Q2 -> https://finance.yahoo.com/quote/VRTX
A20: =TRIM(IUSV!I3) -> S.US.KMX | B20: News | C20: =RTD("cqg.rtd", ,"ContractData",A20, "LongDescription",, "T")&" ("&RIGHT(A20,LEN(A20)-5)&")" -> Carmax Inc (KMX) | H20: =RTD("cqg.rtd", ,"ContractData",A20, "LastTradeToday",, "T") -> 62.12 | I20: =RTD("cqg.rtd", ,"ContractData",A20, "NetLastTradeToday",, "T") -> 2.1 | J20: =RTD("cqg.rtd", ,"ContractData",A20, "PerCentNetLastTrade",, "T")/100 -> 0.03498833722 | K20: =I20/RTD("cqg.rtd",,"StudyData",A20, "ATR", "MaType=Sim,Period=10", "ATR","D","-1","ALL",,,"FALSE","T")/100 -> 0.01557863501 | L20: =RTD("cqg.rtd", ,"ContractData",A20, "OPen",, "T") -> 61.23 | M20: =RTD("cqg.rtd", ,"ContractData", A20, "HIgh",, "T") -> 62.75 | N20: =RTD("cqg.rtd", ,"ContractData",A20, "LOw",, "T") -> 61.03 | O20: =RTD("cqg.rtd", ,"ContractData",A20, "T_CVol",, "T") -> 1407835 | Q20: =IFERROR(O20/RTD("cqg.rtd",,"StudyData",A20, "MA", "InputChoice=Vol,MAType=Sim,Period=21", "MA","D","-1","all",,,,"T"),"") -> 0.5290102872 | R20: =IUSV!Q3 -> https://finance.yahoo.com/quote/KMX
A21: =TRIM(IUSV!I4) -> S.US.MU | B21: News | C21: =RTD("cqg.rtd", ,"ContractData",A21, "LongDescription",, "T")&" ("&RIGHT(A21,LEN(A21)-5)&")" -> Micron Technology Inc (MU) | H21: =RTD("cqg.rtd", ,"ContractData",A21, "LastTradeToday",, "T") -> 27.65 | I21: =RTD("cqg.rtd", ,"ContractData",A21, "NetLastTradeToday",, "T") -> 0.65 | J21: =RTD("cqg.rtd", ,"ContractData",A21, "PerCentNetLastTrade",, "T")/100 -> 0.02407407407 | K21: =I21/RTD("cqg.rtd",,"StudyData",A21, "ATR", "MaType=Sim,Period=10", "ATR","D","-1","ALL",,,"FALSE","T")/100 -> 0.008655126498 | L21: =RTD("cqg.rtd", ,"ContractData",A21, "OPen",, "T") -> 27.15 | M21: =RTD("cqg.rtd", ,"ContractData", A21, "HIgh",, "T") -> 27.89 | N21: =RTD("cqg.rtd", ,"ContractData",A21, "LOw",, "T") -> 27.08 | O21: =RTD("cqg.rtd", ,"ContractData",A21, "T_CVol",, "T") -> 9100890 | Q21: =IFERROR(O21/RTD("cqg.rtd",,"StudyData",A21, "MA", "InputChoice=Vol,MAType=Sim,Period=21", "MA","D","-1","all",,,,"T"),"") -> 0.3682411837 | R21: =IUSV!Q4 -> https://finance.yahoo.com/quote/MU
A22: =TRIM(IUSV!I5) -> S.US.QRVO | B22: News | C22: =RTD("cqg.rtd", ,"ContractData",A22, "LongDescription",, "T")&" ("&RIGHT(A22,LEN(A22)-5)&")" -> Qorvo (QRVO) | H22: =RTD("cqg.rtd", ,"ContractData",A22, "LastTradeToday",, "T") -> 74.24 | I22: =RTD("cqg.rtd", ,"ContractData",A22, "NetLastTradeToday",, "T") -> 1.7 | J22: =RTD("cqg.rtd", ,"ContractData",A22, "PerCentNetLastTrade",, "T")/100 -> 0.02343534602 | K22: =I22/RTD("cqg.rtd",,"StudyData",A22, "ATR", "MaType=Sim,Period=10", "ATR","D","-1","ALL",,,"FALSE","T")/100 -> 0.007783882784 | L22: =RTD("cqg.rtd", ,"ContractData",A22, "OPen",, "T") -> 72.16 | M22: =RTD("cqg.rtd", ,"ContractData", A22, "HIgh",, "T") -> 74.55 | N22: =RTD("cqg.rtd", ,"ContractData",A22, "LOw",, "T") -> 71.75 | O22: =RTD("cqg.rtd", ,"ContractData",A22, "T_CVol",, "T") -> 501105 | Q22: =IFERROR(O22/RTD("cqg.rtd",,"StudyData",A22, "MA", "InputChoice=Vol,MAType=Sim,Period=21", "MA","D","-1","all",,,,"T"),"") -> 0.2659301785 | R22: =IUSV!Q5 -> https://finance.yahoo.com/quote/QRVO
A23: =TRIM(IUSV!I6) -> S.US.WMT | B23: News | C23: =RTD("cqg.rtd", ,"ContractData",A23, "LongDescription",, "T")&" ("&RIGHT(A23,LEN(A23)-5)&")" -> Wal-Mart Stores Inc (WMT) | H23: =RTD("cqg.rtd", ,"ContractData",A23, "LastTradeToday",, "T") -> 76.87 | I23: =RTD("cqg.rtd", ,"ContractData",A23, "NetLastTradeToday",, "T") -> 1.75 | J23: =RTD("cqg.rtd", ,"ContractData",A23, "PerCentNetLastTrade",, "T")/100 -> 0.02329605964 | K23: =I23/RTD("cqg.rtd",,"StudyData",A23, "ATR", "MaType=Sim,Period=10", "ATR","D","-1","ALL",,,"FALSE","T")/100 -> 0.02352150538 | L23: =RTD("cqg.rtd", ,"ContractData",A23, "OPen",, "T") -> 76.89 | M23: =RTD("cqg.rtd", ,"ContractData", A23, "HIgh",, "T") -> 77.5 | N23: =RTD("cqg.rtd", ,"ContractData",A23, "LOw",, "T") -> 76.13 | O23: =RTD("cqg.rtd", ,"ContractData",A23, "T_CVol",, "T") -> 5074716 | Q23: =IFERROR(O23/RTD("cqg.rtd",,"StudyData",A23, "MA", "InputChoice=Vol,MAType=Sim,Period=21", "MA","D","-1","all",,,,"T"),"") -> 0.7199392238 | R23: =IUSV!Q6 -> https://finance.yahoo.com/quote/WMT
A24: =TRIM(IUSV!I7) -> S.US.CCL | B24: News | C24: =RTD("cqg.rtd", ,"ContractData",A24, "LongDescription",, "T")&" ("&RIGHT(A24,LEN(A24)-5)&")" -> Carnival Corp (CCL) | H24: =RTD("cqg.rtd", ,"ContractData",A24, "LastTradeToday",, "T") -> 60.97 | I24: =RTD("cqg.rtd", ,"ContractData",A24, "NetLastTradeToday",, "T") -> 1.22 | J24: =RTD("cqg.rtd", ,"ContractData",A24, "PerCentNetLastTrade",, "T")/100 -> 0.02041841004 | K24: =I24/RTD("cqg.rtd",,"StudyData",A24, "ATR", "MaType=Sim,Period=10", "ATR","D","-1","ALL",,,"FALSE","T")/100 -> 0.01601049869 | L24: =RTD("cqg.rtd", ,"ContractData",A24, "OPen",, "T") -> 60.61 | M24: =RTD("cqg.rtd", ,"ContractData", A24, "HIgh",, "T") -> 61.03 | N24: =RTD("cqg.rtd", ,"ContractData",A24, "LOw",, "T") -> 60.27 | O24: =RTD("cqg.rtd", ,"ContractData",A24, "T_CVol",, "T") -> 628021 | Q24: =IFERROR(O24/RTD("cqg.rtd",,"StudyData",A24, "MA", "InputChoice=Vol,MAType=Sim,Period=21", "MA","D","-1","all",,,,"T"),"") -> 0.2072569731 | R24: =IUSV!Q7 -> https://finance.yahoo.com/quote/CCL
A25: =TRIM(IUSV!I8) -> S.US.RDC | B25: News | C25: =RTD("cqg.rtd", ,"ContractData",A25, "LongDescription",, "T")&" ("&RIGHT(A25,LEN(A25)-5)&")" -> Rowan Companies Inc (RDC) | H25: =RTD("cqg.rtd", ,"ContractData",A25, "LastTradeToday",, "T") -> 13.58 | I25: =RTD("cqg.rtd", ,"ContractData",A25, "NetLastTradeToday",, "T") -> 0.27 | J25: =RTD("cqg.rtd", ,"ContractData",A25, "PerCentNetLastTrade",, "T")/100 -> 0.02028549962 | K25: =I25/RTD("cqg.rtd",,"StudyData",A25, "ATR", "MaType=Sim,Period=10", "ATR","D","-1","ALL",,,"FALSE","T")/100 -> 0.004945054945 | L25: =RTD("cqg.rtd", ,"ContractData",A25, "OPen",, "T") -> 13.25 | M25: =RTD("cqg.rtd", ,"ContractData", A25, "HIgh",, "T") -> 13.66 | N25: =RTD("cqg.rtd", ,"ContractData",A25, "LOw",, "T") -> 13.23 | O25: =RTD("cqg.rtd", ,"ContractData",A25, "T_CVol",, "T") -> 580455 | Q25: =IFERROR(O25/RTD("cqg.rtd",,"StudyData",A25, "MA", "InputChoice=Vol,MAType=Sim,Period=21", "MA","D","-1","all",,,,"T"),"") -> 0.1997012138 | R25: =IUSV!Q8 -> https://finance.yahoo.com/quote/RDC
A26: =TRIM(IUSV!I9) -> S.US.PVH | B26: News | C26: =RTD("cqg.rtd", ,"ContractData",A26, "LongDescription",, "T")&" ("&RIGHT(A26,LEN(A26)-5)&")" -> PVH Corp (PVH) | H26: =RTD("cqg.rtd", ,"ContractData",A26, "LastTradeToday",, "T") -> 99.41 | I26: =RTD("cqg.rtd", ,"ContractData",A26, "NetLastTradeToday",, "T") -> 1.94 | J26: =RTD("cqg.rtd", ,"ContractData",A26, "PerCentNetLastTrade",, "T")/100 -> 0.01990356007 | K26: =I26/RTD("cqg.rtd",,"StudyData",A26, "ATR", "MaType=Sim,Period=10", "ATR","D","-1","ALL",,,"FALSE","T")/100 -> 0.01081382386 | L26: =RTD("cqg.rtd", ,"ContractData",A26, "OPen",, "T") -> 97.87 | M26: =RTD("cqg.rtd", ,"ContractData", A26, "HIgh",, "T") -> 99.6 | N26: =RTD("cqg.rtd", ,"ContractData",A26, "LOw",, "T") -> 97.11 | O26: =RTD("cqg.rtd", ,"ContractData",A26, "T_CVol",, "T") -> 275011 | Q26: =IFERROR(O26/RTD("cqg.rtd",,"StudyData",A26, "MA", "InputChoice=Vol,MAType=Sim,Period=21", "MA","D","-1","all",,,,"T"),"") -> 0.2871808777 | R26: =IUSV!Q9 -> https://finance.yahoo.com/quote/PVH
A27: =TRIM(IUSV!I10) -> S.US.DDD | B27: News | C27: =RTD("cqg.rtd", ,"ContractData",A27, "LongDescription",, "T")&" ("&RIGHT(A27,LEN(A27)-5)&")" -> 3D Systems Corporation (DDD) | H27: =RTD("cqg.rtd", ,"ContractData",A27, "LastTradeToday",, "T") -> 22.45 | I27: =RTD("cqg.rtd", ,"ContractData",A27, "NetLastTradeToday",, "T") -> 0.39 | J27: =RTD("cqg.rtd", ,"ContractData",A27, "PerCentNetLastTrade",, "T")/100 -> 0.01767905712 | K27: =I27/RTD("cqg.rtd",,"StudyData",A27, "ATR", "MaType=Sim,Period=10", "ATR","D","-1","ALL",,,"FALSE","T")/100 -> 0.00253082414 | L27: =RTD("cqg.rtd", ,"ContractData",A27, "OPen",, "T") -> 21.97 | M27: =RTD("cqg.rtd", ,"ContractData", A27, "HIgh",, "T") -> 22.9 | N27: =RTD("cqg.rtd", ,"ContractData",A27, "LOw",, "T") -> 21.64 | O27: =RTD("cqg.rtd", ,"ContractData",A27, "T_CVol",, "T") -> 960910 | Q27: =IFERROR(O27/RTD("cqg.rtd",,"StudyData",A27, "MA", "InputChoice=Vol,MAType=Sim,Period=21", "MA","D","-1","all",,,,"T"),"") -> 0.2519376741 | R27: =IUSV!Q10 -> https://finance.yahoo.com/quote/DDD | S27: Bottom 15 Performing Companies
A28: =TRIM(IUSV!I11) -> S.US.USD | B28: News | C28: =RTD("cqg.rtd", ,"ContractData",A28, "LongDescription",, "T")&" ("&RIGHT(A28,LEN(A28)-5)&")" -> ProShares Ultra Semiconductors (USD) | H28: =RTD("cqg.rtd", ,"ContractData",A28, "LastTradeToday",, "T") -> 82.82 | I28: =RTD("cqg.rtd", ,"ContractData",A28, "NetLastTradeToday",, "T") -> 1.46 | J28: =RTD("cqg.rtd", ,"ContractData",A28, "PerCentNetLastTrade",, "T")/100 -> 0.01794493609 | K28: =I28/RTD("cqg.rtd",,"StudyData",A28, "ATR", "MaType=Sim,Period=10", "ATR","D","-1","ALL",,,"FALSE","T")/100 -> 0.006945765937 | L28: =RTD("cqg.rtd", ,"ContractData",A28, "OPen",, "T") -> 80.55 | M28: =RTD("cqg.rtd", ,"ContractData", A28, "HIgh",, "T") -> 82.82 | N28: =RTD("cqg.rtd", ,"ContractData",A28, "LOw",, "T") -> 79.74 | O28: =RTD("cqg.rtd", ,"ContractData",A28, "T_CVol",, "T") -> 2421 | Q28: =IFERROR(O28/RTD("cqg.rtd",,"StudyData",A28, "MA", "InputChoice=Vol,MAType=Sim,Period=21", "MA","D","-1","all",,,,"T"),"") -> 0.4926978651 | R28: =IUSV!Q11 -> https://finance.yahoo.com/quote/USD
A29: =TRIM(IUSV!I12) -> S.US.NOV | B29: News | C29: =RTD("cqg.rtd", ,"ContractData",A29, "LongDescription",, "T")&" ("&RIGHT(A29,LEN(A29)-5)&")" -> National Oilwell Varco Inc (NOV) | H29: =RTD("cqg.rtd", ,"ContractData",A29, "LastTradeToday",, "T") -> 33.91 | I29: =RTD("cqg.rtd", ,"ContractData",A29, "NetLastTradeToday",, "T") -> 0.53 | J29: =RTD("cqg.rtd", ,"ContractData",A29, "PerCentNetLastTrade",, "T")/100 -> 0.01587777112 | K29: =I29/RTD("cqg.rtd",,"StudyData",A29, "ATR", "MaType=Sim,Period=10", "ATR","D","-1","ALL",,,"FALSE","T")/100 -> 0.007104557641 | L29: =RTD("cqg.rtd", ,"ContractData",A29, "OPen",, "T") -> 33.05 | M29: =RTD("cqg.rtd", ,"ContractData", A29, "HIgh",, "T") -> 34.14 | N29: =RTD("cqg.rtd", ,"ContractData",A29, "LOw",, "T") -> 33 | O29: =RTD("cqg.rtd", ,"ContractData",A29, "T_CVol",, "T") -> 599275 | Q29: =IFERROR(O29/RTD("cqg.rtd",,"StudyData",A29, "MA", "InputChoice=Vol,MAType=Sim,Period=21", "MA","D","-1","all",,,,"T"),"") -> 0.168008673 | R29: =IUSV!Q12 -> https://finance.yahoo.com/quote/NOV
A30: =TRIM(IUSV!I13) -> S.US.MS | B30: News | C30: =RTD("cqg.rtd", ,"ContractData",A30, "LongDescription",, "T")&" ("&RIGHT(A30,LEN(A30)-5)&")" -> Morgan Stanley (MS) | H30: =RTD("cqg.rtd", ,"ContractData",A30, "LastTradeToday",, "T") -> 41.63 | I30: =RTD("cqg.rtd", ,"ContractData",A30, "NetLastTradeToday",, "T") -> 0.66 | J30: =RTD("cqg.rtd", ,"ContractData",A30, "PerCentNetLastTrade",, "T")/100 -> 0.0161093483 | K30: =I30/RTD("cqg.rtd",,"StudyData",A30, "ATR", "MaType=Sim,Period=10", "ATR","D","-1","ALL",,,"FALSE","T")/100 -> 0.007792207792 | L30: =RTD("cqg.rtd", ,"ContractData",A30, "OPen",, "T") -> 41 | M30: =RTD("cqg.rtd", ,"ContractData", A30, "HIgh",, "T") -> 41.71 | N30: =RTD("cqg.rtd", ,"ContractData",A30, "LOw",, "T") -> 40.97 | O30: =RTD("cqg.rtd", ,"ContractData",A30, "T_CVol",, "T") -> 2896028 | Q30: =IFERROR(O30/RTD("cqg.rtd",,"StudyData",A30, "MA", "InputChoice=Vol,MAType=Sim,Period=21", "MA","D","-1","all",,,,"T"),"") -> 0.281979652 | R30: =IUSV!Q13 -> https://finance.yahoo.com/quote/MS
A31: =TRIM(IUSV!I14) -> S.US.RCL | B31: News | C31: =RTD("cqg.rtd", ,"ContractData",A31, "LongDescription",, "T")&" ("&RIGHT(A31,LEN(A31)-5)&")" -> Royal Carribean Cruises Ltd (RCL) | H31: =RTD("cqg.rtd", ,"ContractData",A31, "LastTradeToday",, "T") -> 105.13 | I31: =RTD("cqg.rtd", ,"ContractData",A31, "NetLastTradeToday",, "T") -> 1.48 | J31: =RTD("cqg.rtd", ,"ContractData",A31, "PerCentNetLastTrade",, "T")/100 -> 0.01427882296 | K31: =I31/RTD("cqg.rtd",,"StudyData",A31, "ATR", "MaType=Sim,Period=10", "ATR","D","-1","ALL",,,"FALSE","T")/100 -> 0.009499358151 | L31: =RTD("cqg.rtd", ,"ContractData",A31, "OPen",, "T") -> 104.01 | M31: =RTD("cqg.rtd", ,"ContractData", A31, "HIgh",, "T") -> 105.69 | N31: =RTD("cqg.rtd", ,"ContractData",A31, "LOw",, "T") -> 103.74 | O31: =RTD("cqg.rtd", ,"ContractData",A31, "T_CVol",, "T") -> 163406 | Q31: =IFERROR(O31/RTD("cqg.rtd",,"StudyData",A31, "MA", "InputChoice=Vol,MAType=Sim,Period=21", "MA","D","-1","all",,,,"T"),"") -> 0.09316994158 | R31: =IUSV!Q14 -> https://finance.yahoo.com/quote/RCL
A32: =TRIM(IUSV!I15) -> S.US.IVZ | B32: News | C32: =RTD("cqg.rtd", ,"ContractData",A32, "LongDescription",, "T")&" ("&RIGHT(A32,LEN(A32)-5)&")" -> INVESCO LTD (IVZ) | H32: =RTD("cqg.rtd", ,"ContractData",A32, "LastTradeToday",, "T") -> 31.09 | I32: =RTD("cqg.rtd", ,"ContractData",A32, "NetLastTradeToday",, "T") -> 0.43 | J32: =RTD("cqg.rtd", ,"ContractData",A32, "PerCentNetLastTrade",, "T")/100 -> 0.014024788 | K32: =I32/RTD("cqg.rtd",,"StudyData",A32, "ATR", "MaType=Sim,Period=10", "ATR","D","-1","ALL",,,"FALSE","T")/100 -> 0.007678571429 | L32: =RTD("cqg.rtd", ,"ContractData",A32, "OPen",, "T") -> 30.69 | M32: =RTD("cqg.rtd", ,"ContractData", A32, "HIgh",, "T") -> 31.11 | N32: =RTD("cqg.rtd", ,"ContractData",A32, "LOw",, "T") -> 30.51 | O32: =RTD("cqg.rtd", ,"ContractData",A32, "T_CVol",, "T") -> 675296 | Q32: =IFERROR(O32/RTD("cqg.rtd",,"StudyData",A32, "MA", "InputChoice=Vol,MAType=Sim,Period=21", "MA","D","-1","all",,,,"T"),"") -> 0.250932085 | R32: =IUSV!Q15 -> https://finance.yahoo.com/quote/IVZ
C33: Bottom 15 Description | H33: Last | I33: NC | J33: %NC | K33: NC/ATR | L33: Open | M33: High | N33: Low | O33: Volume | Q33: Ratio
A34: =TRIM(IUSV!N15) -> S.US.GEO | B34: News | C34: =RTD("cqg.rtd", ,"ContractData",A34, "LongDescription",, "T")&" ("&RIGHT(A34,LEN(A34)-5)&")" -> The GEO Group Inc (GEO) | H34: =RTD("cqg.rtd", ,"ContractData",A34, "LastTradeToday",, "T") -> 29.76 | I34: =RTD("cqg.rtd", ,"ContractData",A34, "NetLastTradeToday",, "T") -> -0.88 | J34: =RTD("cqg.rtd", ,"ContractData",A34, "PerCentNetLastTrade",, "T")/100 -> -0.02872062663 | K34: =I34/RTD("cqg.rtd",,"StudyData",A34, "ATR", "MaType=Sim,Period=10", "ATR","D","-1","ALL",,,"FALSE","T")/100 -> -0.008278457197 | L34: =RTD("cqg.rtd", ,"ContractData",A34, "OPen",, "T") -> 30.42 | M34: =RTD("cqg.rtd", ,"ContractData", A34, "HIgh",, "T") -> 30.43 | N34: =RTD("cqg.rtd", ,"ContractData",A34, "LOw",, "T") -> 29.74 | O34: =RTD("cqg.rtd", ,"ContractData",A34, "T_CVol",, "T") -> 211797 | Q34: =IFERROR(O34/RTD("cqg.rtd",,"StudyData",A34, "MA", "InputChoice=Vol,MAType=Sim,Period=21", "MA","D","-1","all",,,,"T"),"") -> 0.1969777364 | R34: =IUSV!AB1 -> https://finance.yahoo.com/quote/GEO
A35: =TRIM(IUSV!N14) -> S.US.ATI | B35: News | C35: =RTD("cqg.rtd", ,"ContractData",A35, "LongDescription",, "T")&" ("&RIGHT(A35,LEN(A35)-5)&")" -> Allegheny Tech Inc (ATI) | H35: =RTD("cqg.rtd", ,"ContractData",A35, "LastTradeToday",, "T") -> 14.65 | I35: =RTD("cqg.rtd", ,"ContractData",A35, "NetLastTradeToday",, "T") -> -0.44 | J35: =RTD("cqg.rtd", ,"ContractData",A35, "PerCentNetLastTrade",, "T")/100 -> -0.02915838304 | K35: =I35/RTD("cqg.rtd",,"StudyData",A35, "ATR", "MaType=Sim,Period=10", "ATR","D","-1","ALL",,,"FALSE","T")/100 -> -0.007236842105 | L35: =RTD("cqg.rtd", ,"ContractData",A35, "OPen",, "T") -> 14.9 | M35: =RTD("cqg.rtd", ,"ContractData", A35, "HIgh",, "T") -> 14.91 | N35: =RTD("cqg.rtd", ,"ContractData",A35, "LOw",, "T") -> 14.53 | O35: =RTD("cqg.rtd", ,"ContractData",A35, "T_CVol",, "T") -> 297085 | Q35: =IFERROR(O35/RTD("cqg.rtd",,"StudyData",A35, "MA", "InputChoice=Vol,MAType=Sim,Period=21", "MA","D","-1","all",,,,"T"),"") -> 0.1121358703 | R35: =IUSV!AB2 -> https://finance.yahoo.com/quote/ATI
A36: =TRIM(IUSV!N13) -> S.US.CNK | B36: News | C36: =RTD("cqg.rtd", ,"ContractData",A36, "LongDescription",, "T")&" ("&RIGHT(A36,LEN(A36)-5)&")" -> Cinemark Holdings, Inc (CNK) | H36: =RTD("cqg.rtd", ,"ContractData",A36, "LastTradeToday",, "T") -> 39.79 | I36: =RTD("cqg.rtd", ,"ContractData",A36, "NetLastTradeToday",, "T") -> -1.22 | J36: =RTD("cqg.rtd", ,"ContractData",A36, "PerCentNetLastTrade",, "T")/100 -> -0.02974884175 | K36: =I36/RTD("cqg.rtd",,"StudyData",A36, "ATR", "MaType=Sim,Period=10", "ATR","D","-1","ALL",,,"FALSE","T")/100 -> -0.01395881007 | L36: =RTD("cqg.rtd", ,"ContractData",A36, "OPen",, "T") -> 39.65 | M36: =RTD("cqg.rtd", ,"ContractData", A36, "HIgh",, "T") -> 40.45 | N36: =RTD("cqg.rtd", ,"ContractData",A36, "LOw",, "T") -> 39.01 | O36: =RTD("cqg.rtd", ,"ContractData",A36, "T_CVol",, "T") -> 366448 | Q36: =IFERROR(O36/RTD("cqg.rtd",,"StudyData",A36, "MA", "InputChoice=Vol,MAType=Sim,Period=21", "MA","D","-1","all",,,,"T"),"") -> 0.3979514679 | R36: =IUSV!AB3 -> https://finance.yahoo.com/quote/CNK
A37: =TRIM(IUSV!N12) -> S.US.JCP | B37: News | C37: =RTD("cqg.rtd", ,"ContractData",A37, "LongDescription",, "T")&" ("&RIGHT(A37,LEN(A37)-5)&")" -> Penney (JC) Company Inc (JCP) | H37: =RTD("cqg.rtd", ,"ContractData",A37, "LastTradeToday",, "T") -> 4.53 | I37: =RTD("cqg.rtd", ,"ContractData",A37, "NetLastTradeToday",, "T") -> -0.14 | J37: =RTD("cqg.rtd", ,"ContractData",A37, "PerCentNetLastTrade",, "T")/100 -> -0.02997858672 | K37: =I37/RTD("cqg.rtd",,"StudyData",A37, "ATR", "MaType=Sim,Period=10", "ATR","D","-1","ALL",,,"FALSE","T")/100 -> -0.00421686747 | L37: =RTD("cqg.rtd", ,"ContractData",A37, "OPen",, "T") -> 4.7 | M37: =RTD("cqg.rtd", ,"ContractData", A37, "HIgh",, "T") -> 4.73 | N37: =RTD("cqg.rtd", ,"ContractData",A37, "LOw",, "T") -> 4.53 | O37: =RTD("cqg.rtd", ,"ContractData",A37, "T_CVol",, "T") -> 5575053 | Q37: =IFERROR(O37/RTD("cqg.rtd",,"StudyData",A37, "MA", "InputChoice=Vol,MAType=Sim,Period=21", "MA","D","-1","all",,,,"T"),"") -> 0.2371857708 | R37: =IUSV!AB4 -> https://finance.yahoo.com/quote/JCP
A38: =TRIM(IUSV!N11) -> S.US.ENDP | B38: News | C38: =RTD("cqg.rtd", ,"ContractData",A38, "LongDescription",, "T")&" ("&RIGHT(A38,LEN(A38)-5)&")" -> Endo International plc (ENDP) | H38: =RTD("cqg.rtd", ,"ContractData",A38, "LastTradeToday",, "T") -> 12.1 | I38: =RTD("cqg.rtd", ,"ContractData",A38, "NetLastTradeToday",, "T") -> -0.42 | J38: =RTD("cqg.rtd", ,"ContractData",A38, "PerCentNetLastTrade",, "T")/100 -> -0.03354632588 | K38: =I38/RTD("cqg.rtd",,"StudyData",A38, "ATR", "MaType=Sim,Period=10", "ATR","D","-1","ALL",,,"FALSE","T")/100 -> -0.005023923445 | L38: =RTD("cqg.rtd", ,"ContractData",A38, "OPen",, "T") -> 12.47 | M38: =RTD("cqg.rtd", ,"ContractData", A38, "HIgh",, "T") -> 12.54 | N38: =RTD("cqg.rtd", ,"ContractData",A38, "LOw",, "T") -> 12.1 | O38: =RTD("cqg.rtd", ,"ContractData",A38, "T_CVol",, "T") -> 1869852 | Q38: =IFERROR(O38/RTD("cqg.rtd",,"StudyData",A38, "MA", "InputChoice=Vol,MAType=Sim,Period=21", "MA","D","-1","all",,,,"T"),"") -> 0.2503907811 | R38: =IUSV!AB5 -> https://finance.yahoo.com/quote/ENDP
A39: =TRIM(IUSV!N10) -> S.US.TUP | B39: News | C39: =RTD("cqg.rtd", ,"ContractData",A39, "LongDescription",, "T")&" ("&RIGHT(A39,LEN(A39)-5)&")" -> Tupperware Brands Corp (TUP) | H39: =RTD("cqg.rtd", ,"ContractData",A39, "LastTradeToday",, "T") -> 69.11 | I39: =RTD("cqg.rtd", ,"ContractData",A39, "NetLastTradeToday",, "T") -> -2.54 | J39: =RTD("cqg.rtd", ,"ContractData",A39, "PerCentNetLastTrade",, "T")/100 -> -0.03545010468 | K39: =I39/RTD("cqg.rtd",,"StudyData",A39, "ATR", "MaType=Sim,Period=10", "ATR","D","-1","ALL",,,"FALSE","T")/100 -> -0.02760869565 | L39: =RTD("cqg.rtd", ,"ContractData",A39, "OPen",, "T") -> 71.01 | M39: =RTD("cqg.rtd", ,"ContractData", A39, "HIgh",, "T") -> 71.01 | N39: =RTD("cqg.rtd", ,"ContractData",A39, "LOw",, "T") -> 68.57 | O39: =RTD("cqg.rtd", ,"ContractData",A39, "T_CVol",, "T") -> 173526 | Q39: =IFERROR(O39/RTD("cqg.rtd",,"StudyData",A39, "MA", "InputChoice=Vol,MAType=Sim,Period=21", "MA","D","-1","all",,,,"T"),"") -> 0.2834183241 | R39: =IUSV!AB6 -> https://finance.yahoo.com/quote/TUP
A40: =TRIM(IUSV!N9) -> S.US.CXW | B40: News | C40: =RTD("cqg.rtd", ,"ContractData",A40, "LongDescription",, "T")&" ("&RIGHT(A40,LEN(A40)-5)&")" -> CoreCivic, Inc. (CXW) | H40: =RTD("cqg.rtd", ,"ContractData",A40, "LastTradeToday",, "T") -> 29.65 | I40: =RTD("cqg.rtd", ,"ContractData",A40, "NetLastTradeToday",, "T") -> -1.09 | J40: =RTD("cqg.rtd", ,"ContractData",A40, "PerCentNetLastTrade",, "T")/100 -> -0.03545868575 | K40: =I40/RTD("cqg.rtd",,"StudyData",A40, "ATR", "MaType=Sim,Period=10", "ATR","D","-1","ALL",,,"FALSE","T")/100 -> -0.007985347985 | L40: =RTD("cqg.rtd", ,"ContractData",A40, "OPen",, "T") -> 30.49 | M40: =RTD("cqg.rtd", ,"ContractData", A40, "HIgh",, "T") -> 30.49 | N40: =RTD("cqg.rtd", ,"ContractData",A40, "LOw",, "T") -> 29.61 | O40: =RTD("cqg.rtd", ,"ContractData",A40, "T_CVol",, "T") -> 353412 | Q40: =IFERROR(O40/RTD("cqg.rtd",,"StudyData",A40, "MA", "InputChoice=Vol,MAType=Sim,Period=21", "MA","D","-1","all",,,,"T"),"") -> 0.3133032201 | R40: =IUSV!AB7 -> https://finance.yahoo.com/quote/CXW
A41: =TRIM(IUSV!N8) -> S.US.SKT | B41: News | C41: =RTD("cqg.rtd", ,"ContractData",A41, "LongDescription",, "T")&" ("&RIGHT(A41,LEN(A41)-5)&")" -> Tanger Factory Outlet Centers, Inc. (SKT) | H41: =RTD("cqg.rtd", ,"ContractData",A41, "LastTradeToday",, "T") -> 24.71 | I41: =RTD("cqg.rtd", ,"ContractData",A41, "NetLastTradeToday",, "T") -> -0.93 | J41: =RTD("cqg.rtd", ,"ContractData",A41, "PerCentNetLastTrade",, "T")/100 -> -0.03627145086 | K41: =I41/RTD("cqg.rtd",,"StudyData",A41, "ATR", "MaType=Sim,Period=10", "ATR","D","-1","ALL",,,"FALSE","T")/100 -> -0.01101895735 | L41: =RTD("cqg.rtd", ,"ContractData",A41, "OPen",, "T") -> 25.3 | M41: =RTD("cqg.rtd", ,"ContractData", A41, "HIgh",, "T") -> 25.4 | N41: =RTD("cqg.rtd", ,"ContractData",A41, "LOw",, "T") -> 24.71 | O41: =RTD("cqg.rtd", ,"ContractData",A41, "T_CVol",, "T") -> 921907 | Q41: =IFERROR(O41/RTD("cqg.rtd",,"StudyData",A41, "MA", "InputChoice=Vol,MAType=Sim,Period=21", "MA","D","-1","all",,,,"T"),"") -> 0.4582931302 | R41: =IUSV!AB8 -> https://finance.yahoo.com/quote/SKT
A42: =TRIM(IUSV!N7) -> S.US.WHR | B42: News | C42: =RTD("cqg.rtd", ,"ContractData",A42, "LongDescription",, "T")&" ("&RIGHT(A42,LEN(A42)-5)&")" -> Whirlpool Corp (WHR) | H42: =RTD("cqg.rtd", ,"ContractData",A42, "LastTradeToday",, "T") -> 175.45 | I42: =RTD("cqg.rtd", ,"ContractData",A42, "NetLastTradeToday",, "T") -> -6.83 | J42: =RTD("cqg.rtd", ,"ContractData",A42, "PerCentNetLastTrade",, "T")/100 -> -0.03746982664 | K42: =I42/RTD("cqg.rtd",,"StudyData",A42, "ATR", "MaType=Sim,Period=10", "ATR","D","-1","ALL",,,"FALSE","T")/100 -> -0.02075357034 | L42: =RTD("cqg.rtd", ,"ContractData",A42, "OPen",, "T") -> 175.48 | M42: =RTD("cqg.rtd", ,"ContractData", A42, "HIgh",, "T") -> 178.8 | N42: =RTD("cqg.rtd", ,"ContractData",A42, "LOw",, "T") -> 172.97 | O42: =RTD("cqg.rtd", ,"ContractData",A42, "T_CVol",, "T") -> 347149 | Q42: =IFERROR(O42/RTD("cqg.rtd",,"StudyData",A42, "MA", "InputChoice=Vol,MAType=Sim,Period=21", "MA","D","-1","all",,,,"T"),"") -> 0.3477051793 | R42: =IUSV!AB9 -> https://finance.yahoo.com/quote/WHR
A43: =TRIM(IUSV!N6) -> S.US.AGCO | B43: News | C43: =RTD("cqg.rtd", ,"ContractData",A43, "LongDescription",, "T")&" ("&RIGHT(A43,LEN(A43)-5)&")" -> AGCO Corporation (AGCO) | H43: =RTD("cqg.rtd", ,"ContractData",A43, "LastTradeToday",, "T") -> 60.45 | I43: =RTD("cqg.rtd", ,"ContractData",A43, "NetLastTradeToday",, "T") -> -2.43 | J43: =RTD("cqg.rtd", ,"ContractData",A43, "PerCentNetLastTrade",, "T")/100 -> -0.03864503817 | K43: =I43/RTD("cqg.rtd",,"StudyData",A43, "ATR", "MaType=Sim,Period=10", "ATR","D","-1","ALL",,,"FALSE","T")/100 -> -0.02624190065 | L43: =RTD("cqg.rtd", ,"ContractData",A43, "OPen",, "T") -> 61.91 | M43: =RTD("cqg.rtd", ,"ContractData", A43, "HIgh",, "T") -> 61.91 | N43: =RTD("cqg.rtd", ,"ContractData",A43, "LOw",, "T") -> 60.33 | O43: =RTD("cqg.rtd", ,"ContractData",A43, "T_CVol",, "T") -> 203358 | Q43: =IFERROR(O43/RTD("cqg.rtd",,"StudyData",A43, "MA", "InputChoice=Vol,MAType=Sim,Period=21", "MA","D","-1","all",,,,"T"),"") -> 0.2764103633 | R43: =IUSV!AB10 -> https://finance.yahoo.com/quote/AGCO
A44: =TRIM(IUSV!N5) -> S.US.JBL | B44: News | C44: =RTD("cqg.rtd", ,"ContractData",A44, "LongDescription",, "T")&" ("&RIGHT(A44,LEN(A44)-5)&")" -> Jabil Circuit Inc (JBL) | H44: =RTD("cqg.rtd", ,"ContractData",A44, "LastTradeToday",, "T") -> 28.18 | I44: =RTD("cqg.rtd", ,"ContractData",A44, "NetLastTradeToday",, "T") -> -1.15 | J44: =RTD("cqg.rtd", ,"ContractData",A44, "PerCentNetLastTrade",, "T")/100 -> -0.03920900102 | K44: =I44/RTD("cqg.rtd",,"StudyData",A44, "ATR", "MaType=Sim,Period=10", "ATR","D","-1","ALL",,,"FALSE","T")/100 -> -0.02619589977 | L44: =RTD("cqg.rtd", ,"ContractData",A44, "OPen",, "T") -> 29.02 | M44: =RTD("cqg.rtd", ,"ContractData", A44, "HIgh",, "T") -> 29.02 | N44: =RTD("cqg.rtd", ,"ContractData",A44, "LOw",, "T") -> 28.16 | O44: =RTD("cqg.rtd", ,"ContractData",A44, "T_CVol",, "T") -> 462713 | Q44: =IFERROR(O44/RTD("cqg.rtd",,"StudyData",A44, "MA", "InputChoice=Vol,MAType=Sim,Period=21", "MA","D","-1","all",,,,"T"),"") -> 0.2706364034 | R44: =IUSV!AB11 -> https://finance.yahoo.com/quote/JBL
A45: =TRIM(IUSV!N4) -> S.US.OI | B45: News | C45: =RTD("cqg.rtd", ,"ContractData",A45, "LongDescription",, "T")&" ("&RIGHT(A45,LEN(A45)-5)&")" -> Owens-Illinois Inc (OI) | H45: =RTD("cqg.rtd", ,"ContractData",A45, "LastTradeToday",, "T") -> 21.27 | I45: =RTD("cqg.rtd", ,"ContractData",A45, "NetLastTradeToday",, "T") -> -0.91 | J45: =RTD("cqg.rtd", ,"ContractData",A45, "PerCentNetLastTrade",, "T")/100 -> -0.04102795311 | K45: =I45/RTD("cqg.rtd",,"StudyData",A45, "ATR", "MaType=Sim,Period=10", "ATR","D","-1","ALL",,,"FALSE","T")/100 -> -0.02357512953 | L45: =RTD("cqg.rtd", ,"ContractData",A45, "OPen",, "T") -> 21.85 | M45: =RTD("cqg.rtd", ,"ContractData", A45, "HIgh",, "T") -> 21.85 | N45: =RTD("cqg.rtd", ,"ContractData",A45, "LOw",, "T") -> 20.82 | O45: =RTD("cqg.rtd", ,"ContractData",A45, "T_CVol",, "T") -> 614632 | Q45: =IFERROR(O45/RTD("cqg.rtd",,"StudyData",A45, "MA", "InputChoice=Vol,MAType=Sim,Period=21", "MA","D","-1","all",,,,"T"),"") -> 0.420723105 | R45: =IUSV!AB12 -> https://finance.yahoo.com/quote/OI
A46: =TRIM(IUSV!N3) -> S.US.FSLR | B46: News | C46: =RTD("cqg.rtd", ,"ContractData",A46, "LongDescription",, "T")&" ("&RIGHT(A46,LEN(A46)-5)&")" -> First Solar, Inc (FSLR) | H46: =RTD("cqg.rtd", ,"ContractData",A46, "LastTradeToday",, "T") -> 33.49 | I46: =RTD("cqg.rtd", ,"ContractData",A46, "NetLastTradeToday",, "T") -> -1.49 | J46: =RTD("cqg.rtd", ,"ContractData",A46, "PerCentNetLastTrade",, "T")/100 -> -0.04259576901 | K46: =I46/RTD("cqg.rtd",,"StudyData",A46, "ATR", "MaType=Sim,Period=10", "ATR","D","-1","ALL",,,"FALSE","T")/100 -> -0.01176935229 | L46: =RTD("cqg.rtd", ,"ContractData",A46, "OPen",, "T") -> 34.58 | M46: =RTD("cqg.rtd", ,"ContractData", A46, "HIgh",, "T") -> 34.58 | N46: =RTD("cqg.rtd", ,"ContractData",A46, "LOw",, "T") -> 33.27 | O46: =RTD("cqg.rtd", ,"ContractData",A46, "T_CVol",, "T") -> 1255697 | Q46: =IFERROR(O46/RTD("cqg.rtd",,"StudyData",A46, "MA", "InputChoice=Vol,MAType=Sim,Period=21", "MA","D","-1","all",,,,"T"),"") -> 0.3098085795 | R46: =IUSV!AB13 -> https://finance.yahoo.com/quote/FSLR
A47: =TRIM(IUSV!N2) -> S.US.AVP | B47: News | C47: =RTD("cqg.rtd", ,"ContractData",A47, "LongDescription",, "T")&" ("&RIGHT(A47,LEN(A47)-5)&")" -> Avon Products Inc (AVP) | H47: =RTD("cqg.rtd", ,"ContractData",A47, "LastTradeToday",, "T") -> 3.42 | I47: =RTD("cqg.rtd", ,"ContractData",A47, "NetLastTradeToday",, "T") -> -0.2 | J47: =RTD("cqg.rtd", ,"ContractData",A47, "PerCentNetLastTrade",, "T")/100 -> -0.05524861878 | K47: =I47/RTD("cqg.rtd",,"StudyData",A47, "ATR", "MaType=Sim,Period=10", "ATR","D","-1","ALL",,,"FALSE","T")/100 -> -0.009345794393 | L47: =RTD("cqg.rtd", ,"ContractData",A47, "OPen",, "T") -> 3.55 | M47: =RTD("cqg.rtd", ,"ContractData", A47, "HIgh",, "T") -> 3.6 | N47: =RTD("cqg.rtd", ,"ContractData",A47, "LOw",, "T") -> 3.33 | O47: =RTD("cqg.rtd", ,"ContractData",A47, "T_CVol",, "T") -> 3074339 | Q47: =IFERROR(O47/RTD("cqg.rtd",,"StudyData",A47, "MA", "InputChoice=Vol,MAType=Sim,Period=21", "MA","D","-1","all",,,,"T"),"") -> 0.5311941134 | R47: =IUSV!AB14 -> https://finance.yahoo.com/quote/AVP
A48: =TRIM(IUSV!N1) -> S.US.CSCO | B48: News | C48: =RTD("cqg.rtd", ,"ContractData",A48, "LongDescription",, "T")&" ("&RIGHT(A48,LEN(A48)-5)&")" -> Cisco Systems Inc (CSCO) | H48: =RTD("cqg.rtd", ,"ContractData",A48, "LastTradeToday",, "T") -> 31.33 | I48: =RTD("cqg.rtd", ,"ContractData",A48, "NetLastTradeToday",, "T") -> -2.49 | J48: =RTD("cqg.rtd", ,"ContractData",A48, "PerCentNetLastTrade",, "T")/100 -> -0.07362507392 | K48: =I48/RTD("cqg.rtd",,"StudyData",A48, "ATR", "MaType=Sim,Period=10", "ATR","D","-1","ALL",,,"FALSE","T")/100 -> -0.0538961039 | L48: =RTD("cqg.rtd", ,"ContractData",A48, "OPen",, "T") -> 31.1 | M48: =RTD("cqg.rtd", ,"ContractData", A48, "HIgh",, "T") -> 31.51 | N48: =RTD("cqg.rtd", ,"ContractData",A48, "LOw",, "T") -> 30.37 | O48: =RTD("cqg.rtd", ,"ContractData",A48, "T_CVol",, "T") -> 26554161 | Q48: =IFERROR(O48/RTD("cqg.rtd",,"StudyData",A48, "MA", "InputChoice=Vol,MAType=Sim,Period=21", "MA","D","-1","all",,,,"T"),"") -> 1.441070022 | R48: =IUSV!AB15 -> https://finance.yahoo.com/quote/CSCO
C49: CQG Inc., Copyright © 2017 | G49: Designed by Thom Hartle | J49: iShares is a registered trademark of BlackRock, Inc. S&P® is a registered trademark of Standard & Poor’s Financial Services LLC | W49: =IUSV!B640 -> 0.3990610329 | X49: of the stocks in the ETF are higher today

Sheet IUSV (hidden)
B1: =IF(D1>=0,1,) -> 1 | C1: S.US.DDD | D1: =IFERROR(RTD("cqg.rtd", ,"ContractData",C1, "PerCentNetLastTrade",, "T")/100,"") -> 0.01767905712 | E1: 10 | F1: =IFERROR(E1,"") -> 10 | G1: S.US.DDD | H1: 1 | I1: =IFERROR(VLOOKUP(H1,$F$1:$G$639,2,FALSE),"") -> S.US.LB | J1: =IFERROR(RTD("cqg.rtd", ,"ContractData",I1, "PerCentNetLastTrade",, "T")/100,"") -> 0.03946280992 | L1: =MIN(D1:D639) -> -0.07362507392 | M1: =VLOOKUP(L1,D1:G639,3,FALSE) -> 638 | N1: =VLOOKUP(M1,$H$1:$I$639,2,FALSE) -> S.US.CSCO | O1: =IFERROR(RTD("cqg.rtd", ,"ContractData",N1, "PerCentNetLastTrade",, "T")/100,"") -> -0.07362507392 | Q1: ="https://finance.yahoo.com/quote/"&RIGHT(I1,(LEN(I1)-5)) -> https://finance.yahoo.com/quote/LB | S1: =RTD("cqg.rtd", ,"ContractData",I1, "LongDescription",, "T") -> L Brands, Inc. | V1: =N15 -> S.US.GEO | W1: =RTD("cqg.rtd", ,"ContractData",V1, "LongDescription",, "T") -> The GEO Group Inc | Z1: =IFERROR(RTD("cqg.rtd", ,"ContractData",V1, "PerCentNetLastTrade",, "T")/100,"") -> -0.02872062663 | AA1: =Z1*-1 -> 0.02872062663 | AB1: ="https://finance.yahoo.com/quote/"&RIGHT(V1,(LEN(V1)-5)) -> https://finance.yahoo.com/quote/GEO
B2: =IF(D2>=0,1,) -> 1 | C2: S.US.MMM | D2: =IFERROR(RTD("cqg.rtd", ,"ContractData",C2, "PerCentNetLastTrade",, "T")/100,"") -> 0.0001539724902 | E2: 246 | F2: =IFERROR(E2,"") -> 246 | G2: S.US.MMM | H2: =H1+1 -> 2 | I2: S.US.VRTX | J2: =IFERROR(RTD("cqg.rtd", ,"ContractData",I2, "PerCentNetLastTrade",, "T")/100,"") -> 0.03532086029 | M2: =M1-1 -> 637 | N2: S.US.AVP | O2: =IFERROR(RTD("cqg.rtd", ,"ContractData",N2, "PerCentNetLastTrade",, "T")/100,"") -> -0.05524861878 | Q2: ="https://finance.yahoo.com/quote/"&RIGHT(I2,(LEN(I2)-5)) -> https://finance.yahoo.com/quote/VRTX | S2: =RTD("cqg.rtd", ,"ContractData",I2, "LongDescription",, "T") -> Vertex Pharmaceuticals Incorporated | V2: =N14 -> S.US.ATI | W2: =RTD("cqg.rtd", ,"ContractData",V2, "LongDescription",, "T") -> Allegheny Tech Inc | Z2: =IFERROR(RTD("cqg.rtd", ,"ContractData",V2, "PerCentNetLastTrade",, "T")/100,"") -> -0.02915838304 | AA2: =Z2*-1 -> 0.02915838304 | AB2: ="https://finance.yahoo.com/quote/"&RIGHT(V2,(LEN(V2)-5)) -> https://finance.yahoo.com/quote/ATI
B3: 0 | C3: S.US.AAN | D3: =IFERROR(RTD("cqg.rtd", ,"ContractData",C3, "PerCentNetLastTrade",, "T")/100,"") -> -0.003707929264 | E3: 363 | F3: 363 | G3: S.US.AAN | H3: =H2+1 -> 3 | I3: S.US.KMX | J3: =IFERROR(RTD("cqg.rtd", ,"ContractData",I3, "PerCentNetLastTrade",, "T")/100,"") -> 0.03498833722 | M3: =M2-1 -> 636 | N3: S.US.FSLR | O3: =IFERROR(RTD("cqg.rtd", ,"ContractData",N3, "PerCentNetLastTrade",, "T")/100,"") -> -0.04259576901 | Q3: https://finance.yahoo.com/quote/KMX | S3: =RTD("cqg.rtd", ,"ContractData",I3, "LongDescription",, "T") -> Carmax Inc | V3: =N13 -> S.US.CNK | W3: =RTD("cqg.rtd", ,"ContractData",V3, "LongDescription",, "T") -> Cinemark Holdings, Inc | Z3: =IFERROR(RTD("cqg.rtd", ,"ContractData",V3, "PerCentNetLastTrade",, "T")/100,"") -> -0.02974884175 | AA3: 0.02974884175 | AB3: https://finance.yahoo.com/quote/CNK
B4: 0 | C4: S.US.ABT | D4: =IFERROR(RTD("cqg.rtd", ,"ContractData",C4, "PerCentNetLastTrade",, "T")/100,"") -> -0.0004642525534 | E4: 272 | F4: 272 | G4: S.US.ABT | H4: 4 | I4: S.US.MU | J4: =IFERROR(RTD("cqg.rtd", ,"ContractData",I4, "PerCentNetLastTrade",, "T")/100,"") -> 0.02407407407 | M4: 635 | N4: S.US.OI | O4: =IFERROR(RTD("cqg.rtd", ,"ContractData",N4, "PerCentNetLastTrade",, "T")/100,"") -> -0.04102795311 | Q4: https://finance.yahoo.com/quote/MU | S4: =RTD("cqg.rtd", ,"ContractData",I4, "LongDescription",, "T") -> Micron Technology Inc | V4: =N12 -> S.US.JCP | W4: =RTD("cqg.rtd", ,"ContractData",V4, "LongDescription",, "T") -> Penney (JC) Company Inc | Z4: =IFERROR(RTD("cqg.rtd", ,"ContractData",V4, "PerCentNetLastTrade",, "T")/100,"") -> -0.02997858672 | AA4: 0.02997858672 | AB4: https://finance.yahoo.com/quote/JCP
B5: 0 | C5: S.US.ACHC | D5: =IFERROR(RTD("cqg.rtd", ,"ContractData",C5, "PerCentNetLastTrade",, "T")/100,"") -> -0.01222378937 | E5: 554 | F5: 554 | G5: S.US.ACHC | H5: 5 | I5: S.US.QRVO | J5: =IFERROR(RTD("cqg.rtd", ,"ContractData",I5, "PerCentNetLastTrade",, "T")/100,"") -> 0.02343534602 | M5: 634 | N5: S.US.JBL | O5: =IFERROR(RTD("cqg.rtd", ,"ContractData",N5, "PerCentNetLastTrade",, "T")/100,"") -> -0.03920900102 | Q5: https://finance.yahoo.com/quote/QRVO | S5: =RTD("cqg.rtd", ,"ContractData",I5, "LongDescription",, "T") -> Qorvo | V5: =N11 -> S.US.ENDP | W5: =RTD("cqg.rtd", ,"ContractData",V5, "LongDescription",, "T") -> Endo International plc | Z5: =IFERROR(RTD("cqg.rtd", ,"ContractData",V5, "PerCentNetLastTrade",, "T")/100,"") -> -0.03354632588 | AA5: 0.03354632588 | AB5: https://finance.yahoo.com/quote/ENDP
B6: 0 | C6: S.US.ACIW | D6: =IFERROR(RTD("cqg.rtd", ,"ContractData",C6, "PerCentNetLastTrade",, "T")/100,"") -> -0.006320541761 | E6: 467 | F6: 467 | G6: S.US.ACIW | H6: 6 | I6: S.US.WMT | J6: =IFERROR(RTD("cqg.rtd", ,"ContractData",I6, "PerCentNetLastTrade",, "T")/100,"") -> 0.02329605964 | M6: 633 | N6: S.US.AGCO | O6: =IFERROR(RTD("cqg.rtd", ,"ContractData",N6, "PerCentNetLastTrade",, "T")/100,"") -> -0.03864503817 | Q6: https://finance.yahoo.com/quote/WMT | S6: =RTD("cqg.rtd", ,"ContractData",I6, "LongDescription",, "T") -> Wal-Mart Stores Inc | V6: =N10 -> S.US.TUP | W6: =RTD("cqg.rtd", ,"ContractData",V6, "LongDescription",, "T") -> Tupperware Brands Corp | Z6: =IFERROR(RTD("cqg.rtd", ,"ContractData",V6, "PerCentNetLastTrade",, "T")/100,"") -> -0.03545010468 | AA6: 0.03545010468 | AB6: https://finance.yahoo.com/quote/TUP
B7: 0 | C7: S.US.ACXM | D7: =IFERROR(RTD("cqg.rtd", ,"ContractData",C7, "PerCentNetLastTrade",, "T")/100,"") -> -0.007648183556 | E7: 486 | F7: 486 | G7: S.US.ACXM | H7: 7 | I7: S.US.CCL | J7: =IFERROR(RTD("cqg.rtd", ,"ContractData",I7, "PerCentNetLastTrade",, "T")/100,"") -> 0.02041841004 | M7: 632 | N7: S.US.WHR | O7: =IFERROR(RTD("cqg.rtd", ,"ContractData",N7, "PerCentNetLastTrade",, "T")/100,"") -> -0.03746982664 | Q7: https://finance.yahoo.com/quote/CCL | S7: =RTD("cqg.rtd", ,"ContractData",I7, "LongDescription",, "T") -> Carnival Corp | V7: =N9 -> S.US.CXW | W7: =RTD("cqg.rtd", ,"ContractData",V7, "LongDescription",, "T") -> CoreCivic, Inc. | Z7: =IFERROR(RTD("cqg.rtd", ,"ContractData",V7, "PerCentNetLastTrade",, "T")/100,"") -> -0.03545868575 | AA7: 0.03545868575 | AB7: https://finance.yahoo.com/quote/CXW
B8: 0 | C8: S.US.ACM | D8: =IFERROR(RTD("cqg.rtd", ,"ContractData",C8, "PerCentNetLastTrade",, "T")/100,"") -> -0.004955094456 | E8: 436 | F8: 436 | G8: S.US.ACM | H8: 8 | I8: S.US.RDC | J8: =IFERROR(RTD("cqg.rtd", ,"ContractData",I8, "PerCentNetLastTrade",, "T")/100,"") -> 0.02028549962 | M8: 631 | N8: S.US.SKT | O8: =IFERROR(RTD("cqg.rtd", ,"ContractData",N8, "PerCentNetLastTrade",, "T")/100,"") -> -0.03627145086 | Q8: https://finance.yahoo.com/quote/RDC | S8: =RTD("cqg.rtd", ,"ContractData",I8, "LongDescription",, "T") -> Rowan Companies Inc | V8: =N8 -> S.US.SKT | W8: =RTD("cqg.rtd", ,"ContractData",V8, "LongDescription",, "T") -> Tanger Factory Outlet Centers, Inc. | Z8: =IFERROR(RTD("cqg.rtd", ,"ContractData",V8, "PerCentNetLastTrade",, "T")/100,"") -> -0.03627145086 | AA8: 0.03627145086 | AB8: https://finance.yahoo.com/quote/SKT
B9: 0 | C9: S.US.AES | D9: =IFERROR(RTD("cqg.rtd", ,"ContractData",C9, "PerCentNetLastTrade",, "T")/100,"") -> -0.02118270079 | E9: 607 | F9: 607 | G9: S.US.AES | H9: 9 | I9: S.US.PVH | J9: =IFERROR(RTD("cqg.rtd", ,"ContractData",I9, "PerCentNetLastTrade",, "T")/100,"") -> 0.01990356007 | M9: 630 | N9: S.US.CXW | O9: =IFERROR(RTD("cqg.rtd", ,"ContractData",N9, "PerCentNetLastTrade",, "T")/100,"") -> -0.03545868575 | Q9: https://finance.yahoo.com/quote/PVH | S9: =RTD("cqg.rtd", ,"ContractData",I9, "LongDescription",, "T") -> PVH Corp | V9: =N7 -> S.US.WHR | W9: =RTD("cqg.rtd", ,"ContractData",V9, "LongDescription",, "T") -> Whirlpool Corp | Z9: =IFERROR(RTD("cqg.rtd", ,"ContractData",V9, "PerCentNetLastTrade",, "T")/100,"") -> -0.03746982664 | AA9: 0.03746982664 | AB9: https://finance.yahoo.com/quote/WHR
B10: 0 | C10: S.US.AMG | D10: =IFERROR(RTD("cqg.rtd", ,"ContractData",C10, "PerCentNetLastTrade",, "T")/100,"") -> -0.009465184008 | E10: 543 | F10: 543 | G10: S.US.AMG | H10: 10 | I10: S.US.DDD | J10: =IFERROR(RTD("cqg.rtd", ,"ContractData",I10, "PerCentNetLastTrade",, "T")/100,"") -> 0.01767905712 | M10: 629 | N10: S.US.TUP | O10: =IFERROR(RTD("cqg.rtd", ,"ContractData",N10, "PerCentNetLastTrade",, "T")/100,"") -> -0.03545010468 | Q10: https://finance.yahoo.com/quote/DDD | S10: =RTD("cqg.rtd", ,"ContractData",I10, "LongDescription",, "T") -> 3D Systems Corporation | V10: =N6 -> S.US.AGCO | W10: =RTD("cqg.rtd", ,"ContractData",V10, "LongDescription",, "T") -> AGCO Corporation | Z10: =IFERROR(RTD("cqg.rtd", ,"ContractData",V10, "PerCentNetLastTrade",, "T")/100,"") -> -0.03864503817 | AA10: 0.03864503817 | AB10: https://finance.yahoo.com/quote/AGCO
B11: 0 | C11: S.US.AFL | D11: =IFERROR(RTD("cqg.rtd", ,"ContractData",C11, "PerCentNetLastTrade",, "T")/100,"") -> -0.0004074979625 | E11: 268 | F11: 268 | G11: S.US.AFL | H11: 11 | I11: S.US.USD | J11: =IFERROR(RTD("cqg.rtd", ,"ContractData",I11, "PerCentNetLastTrade",, "T")/100,"") -> 0.01794493609 | M11: 628 | N11: S.US.ENDP | O11: =IFERROR(RTD("cqg.rtd", ,"ContractData",N11, "PerCentNetLastTrade",, "T")/100,"") -> -0.03354632588 | Q11: https://finance.yahoo.com/quote/USD | S11: =RTD("cqg.rtd", ,"ContractData",I11, "LongDescription",, "T") -> ProShares Ultra Semiconductors | V11: =N5 -> S.US.JBL | W11: =RTD("cqg.rtd", ,"ContractData",V11, "LongDescription",, "T") -> Jabil Circuit Inc | Z11: =IFERROR(RTD("cqg.rtd", ,"ContractData",V11, "PerCentNetLastTrade",, "T")/100,"") -> -0.03920900102 | AA11: 0.03920900102 | AB11: https://finance.yahoo.com/quote/JBL
B12: 0 | C12: S.US.AGCO | D12: =IFERROR(RTD("cqg.rtd", ,"ContractData",C12, "PerCentNetLastTrade",, "T")/100,"") -> -0.03864503817 | E12: 633 | F12: 633 | G12: S.US.AGCO | H12: 12 | I12: S.US.NOV | J12: =IFERROR(RTD("cqg.rtd", ,"ContractData",I12, "PerCentNetLastTrade",, "T")/100,"") -> 0.01587777112 | M12: 627 | N12: S.US.JCP | O12: =IFERROR(RTD("cqg.rtd", ,"ContractData",N12, "PerCentNetLastTrade",, "T")/100,"") -> -0.02997858672 | Q12: https://finance.yahoo.com/quote/NOV | S12: =RTD("cqg.rtd", ,"ContractData",I12, "LongDescription",, "T") -> National Oilwell Varco Inc | V12: =N4 -> S.US.OI | W12: =RTD("cqg.rtd", ,"ContractData",V12, "LongDescription",, "T") -> Owens-Illinois Inc | Z12: =IFERROR(RTD("cqg.rtd", ,"ContractData",V12, "PerCentNetLastTrade",, "T")/100,"") -> -0.04102795311 | AA12: 0.04102795311 | AB12: https://finance.yahoo.com/quote/OI
B13: 1 | C13: S.US.A | D13: =IFERROR(RTD("cqg.rtd", ,"ContractData",C13, "PerCentNetLastTrade",, "T")/100,"") -> 0.002151694459 | E13: 178 | F13: 178 | G13: S.US.A | H13: 13 | I13: S.US.MS | J13: =IFERROR(RTD("cqg.rtd", ,"ContractData",I13, "PerCentNetLastTrade",, "T")/100,"") -> 0.0161093483 | M13: 626 | N13: S.US.CNK | O13: =IFERROR(RTD("cqg.rtd", ,"ContractData",N13, "PerCentNetLastTrade",, "T")/100,"") -> -0.02974884175 | Q13: https://finance.yahoo.com/quote/MS | S13: =RTD("cqg.rtd", ,"ContractData",I13, "LongDescription",, "T") -> Morgan Stanley | V13: =N3 -> S.US.FSLR | W13: =RTD("cqg.rtd", ,"ContractData",V13, "LongDescription",, "T") -> First Solar, Inc | Z13: =IFERROR(RTD("cqg.rtd", ,"ContractData",V13, "PerCentNetLastTrade",, "T")/100,"") -> -0.04259576901 | AA13: 0.04259576901 | AB13: https://finance.yahoo.com/quote/FSLR
B14: 1 | C14: S.US.APD | D14: =IFERROR(RTD("cqg.rtd", ,"ContractData",C14, "PerCentNetLastTrade",, "T")/100,"") -> 0.001543101634 | E14: 209 | F14: 209 | G14: S.US.APD | H14: 14 | I14: S.US.RCL | J14: =IFERROR(RTD("cqg.rtd", ,"ContractData",I14, "PerCentNetLastTrade",, "T")/100,"") -> 0.01427882296 | M14: 625 | N14: S.US.ATI | O14: =IFERROR(RTD("cqg.rtd", ,"ContractData",N14, "PerCentNetLastTrade",, "T")/100,"") -> -0.02915838304 | Q14: https://finance.yahoo.com/quote/RCL | S14: =RTD("cqg.rtd", ,"ContractData",I14, "LongDescription",, "T") -> Royal Carribean Cruises Ltd | V14: =N2 -> S.US.AVP | W14: =RTD("cqg.rtd", ,"ContractData",V14, "LongDescription",, "T") -> Avon Products Inc | Z14: =IFERROR(RTD("cqg.rtd", ,"ContractData",V14, "PerCentNetLastTrade",, "T")/100,"") -> -0.05524861878 | AA14: 0.05524861878 | AB14: https://finance.yahoo.com/quote/AVP
B15: 1 | C15: S.US.ALK | D15: =IFERROR(RTD("cqg.rtd", ,"ContractData",C15, "PerCentNetLastTrade",, "T")/100,"") -> 0.01082856795 | E15: 27 | F15: 27 | G15: S.US.ALK | H15: 15 | I15: S.US.IVZ | J15: =IFERROR(RTD("cqg.rtd", ,"ContractData",I15, "PerCentNetLastTrade",, "T")/100,"") -> 0.014024788 | M15: 624 | N15: S.US.GEO | O15: =IFERROR(RTD("cqg.rtd", ,"ContractData",N15, "PerCentNetLastTrade",, "T")/100,"") -> -0.02872062663 | Q15: https://finance.yahoo.com/quote/IVZ | S15: =RTD("cqg.rtd", ,"ContractData",I15, "LongDescription",, "T") -> INVESCO LTD | V15: =N1 -> S.US.CSCO | W15: =RTD("cqg.rtd", ,"ContractData",V15, "LongDescription",, "T") -> Cisco Systems Inc | Z15: =IFERROR(RTD("cqg.rtd", ,"ContractData",V15, "PerCentNetLastTrade",, "T")/100,"") -> -0.07362507392 | AA15: 0.07362507392 | AB15: https://finance.yahoo.com/quote/CSCO
B16: 0 | C16: S.US.ALEX | D16: =IFERROR(RTD("cqg.rtd", ,"ContractData",C16, "PerCentNetLastTrade",, "T")/100,"") -> -0.002454590083 | E16: 358 | F16: 358 | G16: S.US.ALEX | H16: 16 | I16: S.US.HBAN
B17: 0 | C17: S.US.Y | D17: =IFERROR(RTD("cqg.rtd", ,"ContractData",C17, "PerCentNetLastTrade",, "T")/100,"") -> -0.002135269311 | E17: 343 | F17: 343 | G17: S.US.Y | H17: 17 | I17: S.US.KR
B18: 0 | C18: S.US.ATI | D18: =IFERROR(RTD("cqg.rtd", ,"ContractData",C18, "PerCentNetLastTrade",, "T")/100,"") -> -0.02915838304 | E18: 625 | F18: 625 | G18: S.US.ATI | H18: 18 | I18: S.US.THG
B19: 0 | C19: S.US.ALLE | D19: =IFERROR(RTD("cqg.rtd", ,"ContractData",C19, "PerCentNetLastTrade",, "T")/100,"") -> -0.005453837164 | E19: 450 | F19: 450 | G19: S.US.ALLE | H19: 19 | I19: S.US.T
B20: 0 | C20: S.US.AGN | D20: =IFERROR(RTD("cqg.rtd", ,"ContractData",C20, "PerCentNetLastTrade",, "T")/100,"") -> -0.0009531157809 | E20: 292 | F20: 292 | G20: S.US.AGN | H20: 20 | I20: S.US.BAC
B21: 0 | C21: S.US.ADS | D21: =IFERROR(RTD("cqg.rtd", ,"ContractData",C21, "PerCentNetLastTrade",, "T")/100,"") -> -0.005877660691 | E21: 453 | F21: 453 | G21: S.US.ADS | H21: 21 | I21: S.US.GS
B22: 0 | C22: S.US.LNT | D22: =IFERROR(RTD("cqg.rtd", ,"ContractData",C22, "PerCentNetLastTrade",, "T")/100,"") -> -0.001261988894 | E22: 284 | F22: 284 | G22: S.US.LNT | H22: 22 | I22: S.US.CAH
B23: 1 | C23: S.US.MDRX | D23: =IFERROR(RTD("cqg.rtd", ,"ContractData",C23, "PerCentNetLastTrade",, "T")/100,"") -> 0.004262574595 | E23: 137 | F23: 137 | G23: S.US.MDRX | H23: 23 | I23: S.US.XLNX
B24: 1 | C24: S.US.ALL | D24: =IFERROR(RTD("cqg.rtd", ,"ContractData",C24, "PerCentNetLastTrade",, "T")/100,"") -> 0.001896633476 | E24: 195 | F24: 195 | G24: S.US.ALL | H24: 24 | I24: S.US.EQR
B25: 1 | C25: S.US.AMCX | D25: =IFERROR(RTD("cqg.rtd", ,"ContractData",C25, "PerCentNetLastTrade",, "T")/100,"") -> 0.006957866254 | E25: 74 | F25: 74 | G25: S.US.AMCX | H25: 25 | I25: S.US.WBS
B26: 1 | C26: S.US.AEE | D26: =IFERROR(RTD("cqg.rtd", ,"ContractData",C26, "PerCentNetLastTrade",, "T")/100,"") -> 0.001653499908 | E26: 223 | F26: 223 | G26: S.US.AEE | H26: 26 | I26: S.US.PNR
B27: 1 | C27: S.US.AAL | D27: =IFERROR(RTD("cqg.rtd", ,"ContractData",C27, "PerCentNetLastTrade",, "T")/100,"") -> 0.004897595726 | E27: 110 | F27: 110 | G27: S.US.AAL | H27: 27 | I27: S.US.ALK
B28: 1 | C28: S.US.ACC | D28: =IFERROR(RTD("cqg.rtd", ,"ContractData",C28, "PerCentNetLastTrade",, "T")/100,"") -> 0.007163012807 | E28: 69 | F28: 69 | G28: S.US.ACC | H28: 28 | I28: S.US.ZION
B29: 0 | C29: S.US.AEO | D29: =IFERROR(RTD("cqg.rtd", ,"ContractData",C29, "PerCentNetLastTrade",, "T")/100,"") -> -0.02624434389 | E29: 619 | F29: 619 | G29: S.US.AEO | H29: 29 | I29: S.US.HRC
B30: 0 | C30: S.US.AEP | D30: =IFERROR(RTD("cqg.rtd", ,"ContractData",C30, "PerCentNetLastTrade",, "T")/100,"") -> -0.0002934702861 | E30: 263 | F30: 263 | G30: S.US.AEP | H30: 30 | I30: S.US.ADSK
B31: 1 | C31: S.US.AXP | D31: =IFERROR(RTD("cqg.rtd", ,"ContractData",C31, "PerCentNetLastTrade",, "T")/100,"") -> 0.004059185544 | E31: 140 | F31: 140 | G31: S.US.AXP | H31: 31 | I31: S.US.RJF
B32: 1 | C32: S.US.AFG | D32: =IFERROR(RTD("cqg.rtd", ,"ContractData",C32, "PerCentNetLastTrade",, "T")/100,"") -> 0.003533936181 | E32: 156 | F32: 156 | G32: S.US.AFG | H32: 32 | I32: S.US.OMC
B33: 0 | C33: S.US.AIG | D33: =IFERROR(RTD("cqg.rtd", ,"ContractData",C33, "PerCentNetLastTrade",, "T")/100,"") -> -0.002761533463 | E33: 369 | F33: 369 | G33: S.US.AIG | H33: 33 | I33: S.US.WDC
B34: 1 | C34: S.US.AMP | D34: =IFERROR(RTD("cqg.rtd", ,"ContractData",C34, "PerCentNetLastTrade",, "T")/100,"") -> 0.01021566402 | E34: 39 | F34: 39 | G34: S.US.AMP | H34: 34 | I34: S.US.XRX
B35: 1 | C35: S.US.ABC | D35: =IFERROR(RTD("cqg.rtd", ,"ContractData",C35, "PerCentNetLastTrade",, "T")/100,"") -> 0.008692628651 | E35: 50 | F35: 50 | G35: S.US.ABC | H35: 35 | I35: S.US.CY
B36: 0 | C36: S.US.AME | D36: =IFERROR(RTD("cqg.rtd", ,"ContractData",C36, "PerCentNetLastTrade",, "T")/100,"") -> -0.002354128132 | E36: 353 | F36: 353 | G36: S.US.AME | H36: 36 | I36: S.US.RNR
B37: 1 | C37: S.US.AMGN | D37: =IFERROR(RTD("cqg.rtd", ,"ContractData",C37, "PerCentNetLastTrade",, "T")/100,"") -> 0.004202215714 | E37: 131 | F37: 131 | G37: S.US.AMGN | H37: 37 | I37: S.US.IPG
B38: 1 | C38: S.US.APC | D38: =IFERROR(RTD("cqg.rtd", ,"ContractData",C38, "PerCentNetLastTrade",, "T")/100,"") -> 0.005218399691 | E38: 96 | F38: 96 | G38: S.US.APC | H38: 38 | I38: S.US.TER
B39: 1 | C39: S.US.ANSS | D39: =IFERROR(RTD("cqg.rtd", ,"ContractData",C39, "PerCentNetLastTrade",, "T")/100,"") -> 0.001168224299 | E39: 219 | F39: 219 | G39: S.US.ANSS | H39: 39 | I39: S.US.AMP
B40: 1 | C40: S.US.ANTM | D40: =IFERROR(RTD("cqg.rtd", ,"ContractData",C40, "PerCentNetLastTrade",, "T")/100,"") -> 0.01016352487 | E40: 41 | F40: 41 | G40: S.US.ANTM | H40: 40 | I40: S.US.TMO
B41: 0 | C41: S.US.APA | D41: =IFERROR(RTD("cqg.rtd", ,"ContractData",C41, "PerCentNetLastTrade",, "T")/100,"") -> -0.004383343295 | E41: 437 | F41: 437 | G41: S.US.APA | H41: 41 | I41: S.US.ANTM
B42: 0 | C42: S.US.ATR | D42: =IFERROR(RTD("cqg.rtd", ,"ContractData",C42, "PerCentNetLastTrade",, "T")/100,"") -> -0.01373359261 | E42: 571 | F42: 571 | G42: S.US.ATR | H42: 42 | I42: S.US.VZ
B43: 0 | C43: S.US.WTR | D43: =IFERROR(RTD("cqg.rtd", ,"ContractData",C43, "PerCentNetLastTrade",, "T")/100,"") -> -0.008547008547 | E43: 512 | F43: 512 | G43: S.US.WTR | H43: 43 | I43: S.US.NTRS
B44: 0 | C44: S.US.ADM | D44: =IFERROR(RTD("cqg.rtd", ,"ContractData",C44, "PerCentNetLastTrade",, "T")/100,"") -> -0.009633911368 | E44: 529 | F44: 529 | G44: S.US.ADM | H44: 44 | I44: S.US.STI
B45: 0 | C45: S.US.ARNC | D45: =IFERROR(RTD("cqg.rtd", ,"ContractData",C45, "PerCentNetLastTrade",, "T")/100,"") -> -0.001862891207 | E45: 335 | F45: 335 | G45: S.US.ARNC | H45: 45 | I45: S.US.JCI
B46: 0 | C46: S.US.ARRS | D46: =IFERROR(RTD("cqg.rtd", ,"ContractData",C46, "PerCentNetLastTrade",, "T")/100,"") -> -0.006952067325 | E46: 482 | F46: 482 | G46: S.US.ARRS | H46: 46 | I46: S.US.LM
B47: 0 | C47: S.US.ARW | D47: =IFERROR(RTD("cqg.rtd", ,"ContractData",C47, "PerCentNetLastTrade",, "T")/100,"") -> -0.005306844469 | E47: 447 | F47: 447 | G47: S.US.ARW | H47: 47 | I47: S.US.CMA
B48: 1 | C48: S.US.ASH | D48: =IFERROR(RTD("cqg.rtd", ,"ContractData",C48, "PerCentNetLastTrade",, "T")/100,"") -> 0.0004731861199 | E48: 236 | F48: 236 | G48: S.US.ASH | H48: 48 | I48: S.US.CVS
B49: 1 | C49: S.US.AHL | D49: =IFERROR(RTD("cqg.rtd", ,"ContractData",C49, "PerCentNetLastTrade",, "T")/100,"") -> 0 | E49: 248 | F49: 248 | G49: S.US.AHL | H49: 49 | I49: S.US.MRK
B50: 1 | C50: S.US.ASB | D50: =IFERROR(RTD("cqg.rtd", ,"ContractData",C50, "PerCentNetLastTrade",, "T")/100,"") -> 0.006263048017 | E50: 80 | F50: 80 | G50: S.US.ASB | H50: 50 | I50: S.US.ABC
B51: 0 | C51: S.US.AIZ | D51: =IFERROR(RTD("cqg.rtd", ,"ContractData",C51, "PerCentNetLastTrade",, "T")/100,"") -> -0.002695686901 | E51: 368 | F51: 368 | G51: S.US.AIZ | H51: 51 | I51: S.US.KHC
B52: 1 | C52: S.US.T | D52: =IFERROR(RTD("cqg.rtd", ,"ContractData",C52, "PerCentNetLastTrade",, "T")/100,"") -> 0.01227976508 | E52: 19 | F52: 19 | G52: S.US.T | H52: 52 | I52: S.US.ILMN
B53: 0 | C53: S.US.ATO | D53: =IFERROR(RTD("cqg.rtd", ,"ContractData",C53, "PerCentNetLastTrade",, "T")/100,"") -> -0.009807572936 | E53: 531 | F53: 531 | G53: S.US.ATO | H53: 53 | I53: S.US.INTC
B54: 1 | C54: S.US.ADSK | D54: =IFERROR(RTD("cqg.rtd", ,"ContractData",C54, "PerCentNetLastTrade",, "T")/100,"") -> 0.01042886027 | E54: 30 | F54: 30 | G54: S.US.ADSK | H54: 54 | I54: S.US.SF
B55: 1 | C55: S.US.AN | D55: =IFERROR(RTD("cqg.rtd", ,"ContractData",C55, "PerCentNetLastTrade",, "T")/100,"") -> 0.00460593654 | E55: 120 | F55: 120 | G55: S.US.AN | H55: 55 | I55: S.US.EGN
B56: 0 | C56: S.US.AVY | D56: =IFERROR(RTD("cqg.rtd", ,"ContractData",C56, "PerCentNetLastTrade",, "T")/100,"") -> -0.007744433688 | E56: 491 | F56: 491 | G56: S.US.AVY | H56: 56 | I56: S.US.WAT
B57: 0 | C57: S.US.AVT | D57: =IFERROR(RTD("cqg.rtd", ,"ContractData",C57, "PerCentNetLastTrade",, "T")/100,"") -> -0.00737704918 | E57: 472 | F57: 472 | G57: S.US.AVT | H57: 57 | I57: S.US.HSIC
B58: 0 | C58: S.US.AVP | D58: =IFERROR(RTD("cqg.rtd", ,"ContractData",C58, "PerCentNetLastTrade",, "T")/100,"") -> -0.05524861878 | E58: 637 | F58: 637 | G58: S.US.AVP | H58: 58 | I58: S.US.DISH
B59: 1 | C59: S.US.BHI | D59: =IFERROR(RTD("cqg.rtd", ,"ContractData",C59, "PerCentNetLastTrade",, "T")/100,"") -> 0.00296012537 | E59: 160 | F59: 160 | G59: S.US.BHI | H59: 59 | I59: S.US.CCP
B60: 0 | C60: S.US.BLL | D60: =IFERROR(RTD("cqg.rtd", ,"ContractData",C60, "PerCentNetLastTrade",, "T")/100,"") -> -0.01025512756 | E60: 534 | F60: 534 | G60: S.US.BLL | H60: 60 | I60: S.US.ESV
B61: 1 | C61: S.US.BXS | D61: =IFERROR(RTD("cqg.rtd", ,"ContractData",C61, "PerCentNetLastTrade",, "T")/100,"") -> 0.006956521739 | E61: 72 | F61: 72 | G61: S.US.BXS | H61: 61 | I61: S.US.WFC
B62: 1 | C62: S.US.BAC | D62: =IFERROR(RTD("cqg.rtd", ,"ContractData",C62, "PerCentNetLastTrade",, "T")/100,"") -> 0.01196278245 | E62: 20 | F62: 20 | G62: S.US.BAC | H62: 62 | I62: S.US.JNS
B63: 1 | C63: S.US.BOH | D63: =IFERROR(RTD("cqg.rtd", ,"ContractData",C63, "PerCentNetLastTrade",, "T")/100,"") -> 0.003867474539 | E63: 150 | F63: 150 | G63: S.US.BOH | H63: 63 | I63: S.US.UMBF
B64: 1 | C64: S.US.BK | D64: =IFERROR(RTD("cqg.rtd", ,"ContractData",C64, "PerCentNetLastTrade",, "T")/100,"") -> 0.00453661698 | E64: 115 | F64: 115 | G64: S.US.BK | H64: 64 | I64: S.US.CHRW
B65: 0 | C65: S.US.BAX | D65: =IFERROR(RTD("cqg.rtd", ,"ContractData",C65, "PerCentNetLastTrade",, "T")/100,"") -> -0.004572634541 | E65: 424 | F65: 424 | G65: S.US.BAX | H65: 65 | I65: =IFERROR(VLOOKUP(H65,$F$1:$G$639,2,FALSE),"") -> S.US.SIG
B66: =IF(D66>=0,1,) -> 1 | C66: S.US.BBT | D66: =IFERROR(RTD("cqg.rtd", ,"ContractData",C66, "PerCentNetLastTrade",, "T")/100,"") -> 0.005236848369 | E66: 99 | F66: =IFERROR(E66,"") -> 99 | G66: S.US.BBT | H66: 66 | I66: S.US.CI
B67: 0 | C67: S.US.BBBY | D67: =IFERROR(RTD("cqg.rtd", ,"ContractData",C67, "PerCentNetLastTrade",, "T")/100,"") -> -0.008450704225 | E67: 509 | F67: 509 | G67: S.US.BBBY | H67: =H66+1 -> 67 | I67: S.US.TGT
B68: 0 | C68: S.US.BDC | D68: =IFERROR(RTD("cqg.rtd", ,"ContractData",C68, "PerCentNetLastTrade",, "T")/100,"") -> -0.01058201058 | E68: 540 | F68: 540 | G68: S.US.BDC | H68: 68 | I68: S.US.IFF
B69: 0 | C69: S.US.BMS | D69: =IFERROR(RTD("cqg.rtd", ,"ContractData",C69, "PerCentNetLastTrade",, "T")/100,"") -> -0.01028571429 | E69: 535 | F69: 535 | G69: S.US.BMS | H69: 69 | I69: S.US.ACC
B70: 1 | C70: S.US.BRKB | D70: =IFERROR(RTD("cqg.rtd", ,"ContractData",C70, "PerCentNetLastTrade",, "T")/100,"") -> 0.006573235768 | E70: 77 | F70: 77 | G70: S.US.BRKB | H70: 70 | I70: S.US.PKI
B71: 1 | C71: S.US.BBY | D71: =IFERROR(RTD("cqg.rtd", ,"ContractData",C71, "PerCentNetLastTrade",, "T")/100,"") -> 0.001580715274 | E71: 206 | F71: 206 | G71: S.US.BBY | H71: 71 | I71: S.US.PGR
B72: 0 | C72: S.US.BIG | D72: =IFERROR(RTD("cqg.rtd", ,"ContractData",C72, "PerCentNetLastTrade",, "T")/100,"") -> -0.004724071291 | E72: 429 | F72: 429 | G72: S.US.BIG | H72: 72 | I72: S.US.BXS
B73: 1 | C73: S.US.BIOCA | D73: =IFERROR(RTD("cqg.rtd", ,"ContractData",C73, "PerCentNetLastTrade",, "T")/100,"") -> 0.004008381161 | E73: 143 | F73: 143 | G73: S.US.BIOCA | H73: 73 | I73: S.US.NE
B74: 0 | C74: S.US.BKH | D74: =IFERROR(RTD("cqg.rtd", ,"ContractData",C74, "PerCentNetLastTrade",, "T")/100,"") -> -0.01505627832 | E74: 577 | F74: 577 | G74: S.US.BKH | H74: 74 | I74: S.US.AMCX
B75: 1 | C75: S.US.BLK | D75: =IFERROR(RTD("cqg.rtd", ,"ContractData",C75, "PerCentNetLastTrade",, "T")/100,"") -> 0.004639403654 | E75: 119 | F75: 119 | G75: S.US.BLK | H75: 75 | I75: S.US.DAL
B76: 0 | C76: S.US.BA | D76: =IFERROR(RTD("cqg.rtd", ,"ContractData",C76, "PerCentNetLastTrade",, "T")/100,"") -> -0.009508893612 | E76: 518 | F76: 518 | G76: S.US.BA | H76: 76 | I76: S.US.EXPD
B77: 1 | C77: S.US.BWA | D77: =IFERROR(RTD("cqg.rtd", ,"ContractData",C77, "PerCentNetLastTrade",, "T")/100,"") -> 0.00225338007 | E77: 190 | F77: 190 | G77: S.US.BWA | H77: 77 | I77: S.US.BRKB
B78: 0 | C78: S.US.SAM | D78: =IFERROR(RTD("cqg.rtd", ,"ContractData",C78, "PerCentNetLastTrade",, "T")/100,"") -> -0.009710817565 | E78: 530 | F78: 530 | G78: S.US.SAM | H78: 78 | I78: S.US.COF
B79: 0 | C79: S.US.BXP | D79: =IFERROR(RTD("cqg.rtd", ,"ContractData",C79, "PerCentNetLastTrade",, "T")/100,"") -> -0.002989040186 | E79: 377 | F79: 377 | G79: S.US.BXP | H79: 79 | I79: S.US.COST
B80: 0 | C80: S.US.BMY | D80: =IFERROR(RTD("cqg.rtd", ,"ContractData",C80, "PerCentNetLastTrade",, "T")/100,"") -> -0.00404337438 | E80: 397 | F80: 397 | G80: S.US.BMY | H80: 80 | I80: S.US.ASB
B81: 1 | C81: S.US.BRCD | D81: =IFERROR(RTD("cqg.rtd", ,"ContractData",C81, "PerCentNetLastTrade",, "T")/100,"") -> 0.0007917656374 | E81: 231 | F81: 231 | G81: S.US.BRCD | H81: 81 | I81: S.US.LYV
B82: 1 | C82: S.US.BFB | D82: =IFERROR(RTD("cqg.rtd", ,"ContractData",C82, "PerCentNetLastTrade",, "T")/100,"") -> 0.0009563886764 | E82: 227 | F82: 227 | G82: S.US.BFB | H82: 82 | I82: S.US.RE
B83: 0 | C83: S.US.BC | D83: =IFERROR(RTD("cqg.rtd", ,"ContractData",C83, "PerCentNetLastTrade",, "T")/100,"") -> -0.0003647638154 | E83: 266 | F83: 266 | G83: S.US.BC | H83: 83 | I83: S.US.CME
B84: 0 | C84: S.US.CA | D84: =IFERROR(RTD("cqg.rtd", ,"ContractData",C84, "PerCentNetLastTrade",, "T")/100,"") -> -0.000320410125 | E84: 264 | F84: 264 | G84: S.US.CA | H84: 84 | I84: S.US.XRAY
B85: 0 | C85: S.US.CAB | D85: =IFERROR(RTD("cqg.rtd", ,"ContractData",C85, "PerCentNetLastTrade",, "T")/100,"") -> -0.009931947765 | E85: 533 | F85: 533 | G85: S.US.CAB | H85: 85 | I85: S.US.TCB
B86: 0 | C86: S.US.CBT | D86: =IFERROR(RTD("cqg.rtd", ,"ContractData",C86, "PerCentNetLastTrade",, "T")/100,"") -> -0.004720692368 | E86: 428 | F86: 428 | G86: S.US.CBT | H86: 86 | I86: S.US.FULT
B87: 0 | C87: S.US.COG | D87: =IFERROR(RTD("cqg.rtd", ,"ContractData",C87, "PerCentNetLastTrade",, "T")/100,"") -> -0.003445305771 | E87: 379 | F87: 379 | G87: S.US.COG | H87: 87 | I87: S.US.CMG
B88: 1 | C88: S.US.CDNS | D88: =IFERROR(RTD("cqg.rtd", ,"ContractData",C88, "PerCentNetLastTrade",, "T")/100,"") -> 0.001234949058 | E88: 214 | F88: 214 | G88: S.US.CDNS | H88: 88 | I88: S.US.RF
B89: 1 | C89: S.US.CAA | D89: =IFERROR(RTD("cqg.rtd", ,"ContractData",C89, "PerCentNetLastTrade",, "T")/100,"") -> 0.005006954103 | E89: 106 | F89: 106 | G89: S.US.CAA | H89: 89 | I89: S.US.MAS
B90: 1 | C90: S.US.CPT | D90: =IFERROR(RTD("cqg.rtd", ,"ContractData",C90, "PerCentNetLastTrade",, "T")/100,"") -> 0.004541549036 | E90: 122 | F90: 122 | G90: S.US.CPT | H90: 90 | I90: S.US.TRIP
B91: 0 | C91: S.US.CPB | D91: =IFERROR(RTD("cqg.rtd", ,"ContractData",C91, "PerCentNetLastTrade",, "T")/100,"") -> -0.005573941822 | E91: 443 | F91: 443 | G91: S.US.CPB | H91: 91 | I91: S.US.TPH
B92: 1 | C92: S.US.COF | D92: =IFERROR(RTD("cqg.rtd", ,"ContractData",C92, "PerCentNetLastTrade",, "T")/100,"") -> 0.006371861858 | E92: 78 | F92: 78 | G92: S.US.COF | H92: 92 | I92: S.US.GPC
B93: 1 | C93: S.US.CAH | D93: =IFERROR(RTD("cqg.rtd", ,"ContractData",C93, "PerCentNetLastTrade",, "T")/100,"") -> 0.01173184358 | E93: 22 | F93: 22 | G93: S.US.CAH | H93: 93 | I93: S.US.SBNY
B94: 1 | C94: S.US.CCP | D94: =IFERROR(RTD("cqg.rtd", ,"ContractData",C94, "PerCentNetLastTrade",, "T")/100,"") -> 0.00822122571 | E94: 59 | F94: 59 | G94: S.US.CCP | H94: 94 | I94: S.US.SLB
B95: 1 | C95: S.US.KMX | D95: =IFERROR(RTD("cqg.rtd", ,"ContractData",C95, "PerCentNetLastTrade",, "T")/100,"") -> 0.03498833722 | E95: 3 | F95: 3 | G95: S.US.KMX | H95: 95 | I95: S.US.RGA
B96: 1 | C96: S.US.CCL | D96: =IFERROR(RTD("cqg.rtd", ,"ContractData",C96, "PerCentNetLastTrade",, "T")/100,"") -> 0.02041841004 | E96: 7 | F96: 7 | G96: S.US.CCL | H96: 96 | I96: S.US.APC
B97: 0 | C97: S.US.CRS | D97: =IFERROR(RTD("cqg.rtd", ,"ContractData",C97, "PerCentNetLastTrade",, "T")/100,"") -> -0.01234567901 | E97: 556 | F97: 556 | G97: S.US.CRS | H97: 97 | I97: S.US.ESRX
B98: 1 | C98: S.US.CASY | D98: =IFERROR(RTD("cqg.rtd", ,"ContractData",C98, "PerCentNetLastTrade",, "T")/100,"") -> 0.004783440598 | E98: 114 | F98: 114 | G98: S.US.CASY | H98: 98 | I98: S.US.UBSI
B99: 0 | C99: S.US.CTLT | D99: =IFERROR(RTD("cqg.rtd", ,"ContractData",C99, "PerCentNetLastTrade",, "T")/100,"") -> -0.002386634845 | E99: 355 | F99: 355 | G99: S.US.CTLT | H99: 99 | I99: S.US.BBT
B100: 0 | C100: S.US.CAT | D100: =IFERROR(RTD("cqg.rtd", ,"ContractData",C100, "PerCentNetLastTrade",, "T")/100,"") -> -0.01467944877 | E100: 578 | F100: 578 | G100: S.US.CAT | H100: 100 | I100: S.US.CFG
B101: 1 | C101: S.US.CATY | D101: =IFERROR(RTD("cqg.rtd", ,"ContractData",C101, "PerCentNetLastTrade",, "T")/100,"") -> 0.004133370074 | E101: 161 | F101: 161 | G101: S.US.CATY | H101: 101 | I101: S.US.UTHR
B102: 1 | C102: S.US.CBOE | D102: =IFERROR(RTD("cqg.rtd", ,"ContractData",C102, "PerCentNetLastTrade",, "T")/100,"") -> 0.0003565062389 | E102: 232 | F102: 232 | G102: S.US.CBOE | H102: 102 | I102: S.US.TFX
B103: 0 | C103: S.US.CBG | D103: =IFERROR(RTD("cqg.rtd", ,"ContractData",C103, "PerCentNetLastTrade",, "T")/100,"") -> -0.002393776182 | E103: 342 | F103: 342 | G103: S.US.CBG | H103: 103 | I103: S.US.LLY
B104: 0 | C104: S.US.CNC | D104: =IFERROR(RTD("cqg.rtd", ,"ContractData",C104, "PerCentNetLastTrade",, "T")/100,"") -> -0.008088040308 | E104: 499 | F104: 499 | G104: S.US.CNC | H104: 104 | I104: S.US.CRL
B105: 0 | C105: S.US.CNP | D105: =IFERROR(RTD("cqg.rtd", ,"ContractData",C105, "PerCentNetLastTrade",, "T")/100,"") -> -0.004416635996 | E105: 419 | F105: 419 | G105: S.US.CNP | H105: 105 | I105: S.US.CSX
B106: 0 | C106: S.US.CTL | D106: =IFERROR(RTD("cqg.rtd", ,"ContractData",C106, "PerCentNetLastTrade",, "T")/100,"") -> -0.008146639511 | E106: 502 | F106: 502 | G106: S.US.CTL | H106: 106 | I106: S.US.CAA
B107: 0 | C107: S.US.CF | D107: =IFERROR(RTD("cqg.rtd", ,"ContractData",C107, "PerCentNetLastTrade",, "T")/100,"") -> -0.01347414421 | E107: 573 | F107: 573 | G107: S.US.CF | H107: 107 | I107: S.US.USB
B108: 1 | C108: S.US.CHRW | D108: =IFERROR(RTD("cqg.rtd", ,"ContractData",C108, "PerCentNetLastTrade",, "T")/100,"") -> 0.0078125 | E108: 64 | F108: 64 | G108: S.US.CHRW | H108: 108 | I108: S.US.CB
B109: 1 | C109: S.US.CRL | D109: =IFERROR(RTD("cqg.rtd", ,"ContractData",C109, "PerCentNetLastTrade",, "T")/100,"") -> 0.005650994575 | E109: 104 | F109: 104 | G109: S.US.CRL | H109: 109 | I109: S.US.UNM
B110: 1 | C110: S.US.CHFC | D110: =IFERROR(RTD("cqg.rtd", ,"ContractData",C110, "PerCentNetLastTrade",, "T")/100,"") -> 0.002443358507 | E110: 153 | F110: 153 | G110: S.US.CHFC | H110: 110 | I110: S.US.AAL
B111: 1 | C111: S.US.CC | D111: =IFERROR(RTD("cqg.rtd", ,"ContractData",C111, "PerCentNetLastTrade",, "T")/100,"") -> 0.003021148036 | E111: 147 | F111: 147 | G111: S.US.CC | H111: 111 | I111: S.US.MDP
B112: 1 | C112: S.US.CHK | D112: =IFERROR(RTD("cqg.rtd", ,"ContractData",C112, "PerCentNetLastTrade",, "T")/100,"") -> 0 | E112: 333 | F112: 333 | G112: S.US.CHK | H112: 112 | I112: S.US.RIG
B113: 1 | C113: S.US.CVX | D113: =IFERROR(RTD("cqg.rtd", ,"ContractData",C113, "PerCentNetLastTrade",, "T")/100,"") -> 0.0002865329513 | E113: 242 | F113: 242 | G113: S.US.CVX | H113: 113 | I113: S.US.XL
B114: 0 | C114: S.US.CHS | D114: =IFERROR(RTD("cqg.rtd", ,"ContractData",C114, "PerCentNetLastTrade",, "T")/100,"") -> -0.02284263959 | E114: 615 | F114: 615 | G114: S.US.CHS | H114: 114 | I114: S.US.CASY
B115: 1 | C115: S.US.CMG | D115: =IFERROR(RTD("cqg.rtd", ,"ContractData",C115, "PerCentNetLastTrade",, "T")/100,"") -> 0.005731196465 | E115: 87 | F115: 87 | G115: S.US.CMG | H115: 115 | I115: S.US.BK
B116: 1 | C116: S.US.CB | D116: =IFERROR(RTD("cqg.rtd", ,"ContractData",C116, "PerCentNetLastTrade",, "T")/100,"") -> 0.004935046085 | E116: 108 | F116: 108 | G116: S.US.CB | H116: 116 | I116: S.US.MCY
B117: 0 | C117: S.US.CHD | D117: =IFERROR(RTD("cqg.rtd", ,"ContractData",C117, "PerCentNetLastTrade",, "T")/100,"") -> -0.006236169785 | E117: 461 | F117: 461 | G117: S.US.CHD | H117: 117 | I117: S.US.UMPQ
B118: 0 | C118: S.US.CIEN | D118: =IFERROR(RTD("cqg.rtd", ,"ContractData",C118, "PerCentNetLastTrade",, "T")/100,"") -> -0.01650021711 | E118: 593 | F118: 593 | G118: S.US.CIEN | H118: 118 | I118: S.US.CTSH
B119: 1 | C119: S.US.CI | D119: =IFERROR(RTD("cqg.rtd", ,"ContractData",C119, "PerCentNetLastTrade",, "T")/100,"") -> 0.007007133388 | E119: 66 | F119: 66 | G119: S.US.CI | H119: 119 | I119: S.US.BLK
B120: 0 | C120: S.US.XEC | D120: =IFERROR(RTD("cqg.rtd", ,"ContractData",C120, "PerCentNetLastTrade",, "T")/100,"") -> -0.002668962548 | E120: 366 | F120: 366 | G120: S.US.XEC | H120: 120 | I120: S.US.AN
B121: 1 | C121: S.US.CINF | D121: =IFERROR(RTD("cqg.rtd", ,"ContractData",C121, "PerCentNetLastTrade",, "T")/100,"") -> 0.003057213568 | E121: 169 | F121: 169 | G121: S.US.CINF | H121: 121 | I121: S.US.L
B122: 0 | C122: S.US.CNK | D122: =IFERROR(RTD("cqg.rtd", ,"ContractData",C122, "PerCentNetLastTrade",, "T")/100,"") -> -0.02974884175 | E122: 626 | F122: 626 | G122: S.US.CNK | H122: 122 | I122: S.US.CPT
B123: 0 | C123: S.US.CSCO | D123: =IFERROR(RTD("cqg.rtd", ,"ContractData",C123, "PerCentNetLastTrade",, "T")/100,"") -> -0.07362507392 | E123: 638 | F123: 638 | G123: S.US.CSCO | H123: 123 | I123: S.US.ED
B124: 0 | C124: S.US.C | D124: =IFERROR(RTD("cqg.rtd", ,"ContractData",C124, "PerCentNetLastTrade",, "T")/100,"") -> -0.001500500167 | E124: 312 | F124: 312 | G124: S.US.C | H124: 124 | I124: S.US.CAG
B125: 1 | C125: S.US.CFG | D125: =IFERROR(RTD("cqg.rtd", ,"ContractData",C125, "PerCentNetLastTrade",, "T")/100,"") -> 0.004628290425 | E125: 100 | F125: 100 | G125: S.US.CFG | H125: 125 | I125: S.US.LUK
B126: 0 | C126: S.US.CLH | D126: =IFERROR(RTD("cqg.rtd", ,"ContractData",C126, "PerCentNetLastTrade",, "T")/100,"") -> -0.006684256816 | E126: 475 | F126: 475 | G126: S.US.CLH | H126: 126 | I126: S.US.IBOC
B127: 0 | C127: S.US.CLX | D127: =IFERROR(RTD("cqg.rtd", ,"ContractData",C127, "PerCentNetLastTrade",, "T")/100,"") -> -0.006400975387 | E127: 470 | F127: 470 | G127: S.US.CLX | H127: 127 | I127: S.US.PSA
B128: 1 | C128: S.US.CME | D128: =IFERROR(RTD("cqg.rtd", ,"ContractData",C128, "PerCentNetLastTrade",, "T")/100,"") -> 0.005993745657 | E128: 83 | F128: 83 | G128: S.US.CME | H128: 128 | I128: S.US.NEU
B129: 0 | C129: S.US.CMS | D129: =IFERROR(RTD("cqg.rtd", ,"ContractData",C129, "PerCentNetLastTrade",, "T")/100,"") -> -0.0006584723442 | E129: 280 | F129: 280 | G129: S.US.CMS | H129: 129 | I129: =IFERROR(VLOOKUP(H129,$F$1:$G$639,2,FALSE),"") -> S.US.NATI
B130: =IF(D130>=0,1,) -> 0 | C130: S.US.CNO | D130: =IFERROR(RTD("cqg.rtd", ,"ContractData",C130, "PerCentNetLastTrade",, "T")/100,"") -> -0.002488800398 | E130: 359 | F130: =IFERROR(E130,"") -> 359 | G130: S.US.CNO | H130: 130 | I130: S.US.FCN
B131: 1 | C131: S.US.COH | D131: =IFERROR(RTD("cqg.rtd", ,"ContractData",C131, "PerCentNetLastTrade",, "T")/100,"") -> 0.003798882682 | E131: 152 | F131: 152 | G131: S.US.COH | H131: =H130+1 -> 131 | I131: S.US.AMGN
B132: 0 | C132: S.US.KO | D132: =IFERROR(RTD("cqg.rtd", ,"ContractData",C132, "PerCentNetLastTrade",, "T")/100,"") -> -0.003869792852 | E132: 396 | F132: 396 | G132: S.US.KO | H132: 132 | I132: S.US.LEN
B133: 1 | C133: S.US.CTSH | D133: =IFERROR(RTD("cqg.rtd", ,"ContractData",C133, "PerCentNetLastTrade",, "T")/100,"") -> 0.004341085271 | E133: 118 | F133: 118 | G133: S.US.CTSH | H133: 133 | I133: S.US.HBHC
B134: 0 | C134: S.US.CL | D134: =IFERROR(RTD("cqg.rtd", ,"ContractData",C134, "PerCentNetLastTrade",, "T")/100,"") -> -0.01783590963 | E134: 600 | F134: 600 | G134: S.US.CL | H134: 134 | I134: S.US.WTFC
B135: 1 | C135: S.US.CMA | D135: =IFERROR(RTD("cqg.rtd", ,"ContractData",C135, "PerCentNetLastTrade",, "T")/100,"") -> 0.008919280511 | E135: 47 | F135: 47 | G135: S.US.CMA | H135: 135 | I135: S.US.EVHC
B136: 0 | C136: S.US.CMC | D136: =IFERROR(RTD("cqg.rtd", ,"ContractData",C136, "PerCentNetLastTrade",, "T")/100,"") -> -0.002281802624 | E136: 350 | F136: 350 | G136: S.US.CMC | H136: 136 | I136: S.US.WBA
B137: 0 | C137: S.US.CMP | D137: =IFERROR(RTD("cqg.rtd", ,"ContractData",C137, "PerCentNetLastTrade",, "T")/100,"") -> -0.0133037694 | E137: 564 | F137: 564 | G137: S.US.CMP | H137: 137 | I137: S.US.MDRX
B138: 1 | C138: S.US.CAG | D138: =IFERROR(RTD("cqg.rtd", ,"ContractData",C138, "PerCentNetLastTrade",, "T")/100,"") -> 0.00451887294 | E138: 124 | F138: 124 | G138: S.US.CAG | H138: 138 | I138: S.US.FITB
B139: 0 | C139: S.US.CXO | D139: =IFERROR(RTD("cqg.rtd", ,"ContractData",C139, "PerCentNetLastTrade",, "T")/100,"") -> -0.00845474447 | E139: 515 | F139: 515 | G139: S.US.CXO | H139: 139 | I139: S.US.SNV
B140: 1 | C140: S.US.COP | D140: =IFERROR(RTD("cqg.rtd", ,"ContractData",C140, "PerCentNetLastTrade",, "T")/100,"") -> 0.00172376643 | E140: 194 | F140: 194 | G140: S.US.COP | H140: 140 | I140: S.US.AXP
B141: 0 | C141: S.US.CNX | D141: =IFERROR(RTD("cqg.rtd", ,"ContractData",C141, "PerCentNetLastTrade",, "T")/100,"") -> -0.003217503218 | E141: 386 | F141: 386 | G141: S.US.CNX | H141: 141 | I141: S.US.SYF
B142: 1 | C142: S.US.ED | D142: =IFERROR(RTD("cqg.rtd", ,"ContractData",C142, "PerCentNetLastTrade",, "T")/100,"") -> 0.004536290323 | E142: 123 | F142: 123 | G142: S.US.ED | H142: 142 | I142: S.US.DIS
B143: 0 | C143: S.US.CVG | D143: =IFERROR(RTD("cqg.rtd", ,"ContractData",C143, "PerCentNetLastTrade",, "T")/100,"") -> -0.002518891688 | E143: 361 | F143: 361 | G143: S.US.CVG | H143: 143 | I143: S.US.BIOCA
B144: 1 | C144: S.US.COO | D144: =IFERROR(RTD("cqg.rtd", ,"ContractData",C144, "PerCentNetLastTrade",, "T")/100,"") -> 0.003533737644 | E144: 157 | F144: 157 | G144: S.US.COO | H144: 144 | I144: S.US.ODP
B145: 0 | C145: S.US.CTB | D145: =IFERROR(RTD("cqg.rtd", ,"ContractData",C145, "PerCentNetLastTrade",, "T")/100,"") -> -0.001396648045 | E145: 316 | F145: 316 | G145: S.US.CTB | H145: 145 | I145: S.US.WERN
B146: 0 | C146: S.US.CXW | D146: =IFERROR(RTD("cqg.rtd", ,"ContractData",C146, "PerCentNetLastTrade",, "T")/100,"") -> -0.03545868575 | E146: 630 | F146: 630 | G146: S.US.CXW | H146: 146 | I146: S.US.MTB
B147: 1 | C147: S.US.OFC | D147: =IFERROR(RTD("cqg.rtd", ,"ContractData",C147, "PerCentNetLastTrade",, "T")/100,"") -> 0.0009121313469 | E147: 229 | F147: 229 | G147: S.US.OFC | H147: 147 | I147: S.US.CC
B148: 1 | C148: S.US.COST | D148: =IFERROR(RTD("cqg.rtd", ,"ContractData",C148, "PerCentNetLastTrade",, "T")/100,"") -> 0.006503103754 | E148: 79 | F148: 79 | G148: S.US.COST | H148: 148 | I148: S.US.VTR
B149: 0 | C149: S.US.COTY | D149: =IFERROR(RTD("cqg.rtd", ,"ContractData",C149, "PerCentNetLastTrade",, "T")/100,"") -> -0.01982851018 | E149: 604 | F149: 604 | G149: S.US.COTY | H149: 149 | I149: S.US.STT
B150: 1 | C150: S.US.CUZ | D150: =IFERROR(RTD("cqg.rtd", ,"ContractData",C150, "PerCentNetLastTrade",, "T")/100,"") -> 0.001183431953 | E150: 218 | F150: 218 | G150: S.US.CUZ | H150: 150 | I150: S.US.BOH
B151: 0 | C151: S.US.CBRL | D151: =IFERROR(RTD("cqg.rtd", ,"ContractData",C151, "PerCentNetLastTrade",, "T")/100,"") -> -0.01293212213 | E151: 560 | F151: 560 | G151: S.US.CBRL | H151: 151 | I151: S.US.SRCL
B152: 0 | C152: S.US.CREE | D152: =IFERROR(RTD("cqg.rtd", ,"ContractData",C152, "PerCentNetLastTrade",, "T")/100,"") -> -0.001840773125 | E152: 271 | F152: 271 | G152: S.US.CREE | H152: 152 | I152: S.US.COH
B153: 1 | C153: S.US.CCI | D153: =IFERROR(RTD("cqg.rtd", ,"ContractData",C153, "PerCentNetLastTrade",, "T")/100,"") -> 0.001121076233 | E153: 215 | F153: 215 | G153: S.US.CCI | H153: 153 | I153: S.US.CHFC
B154: 0 | C154: S.US.CSRA | D154: =IFERROR(RTD("cqg.rtd", ,"ContractData",C154, "PerCentNetLastTrade",, "T")/100,"") -> -0.004515456756 | E154: 422 | F154: 422 | G154: S.US.CSRA | H154: 154 | I154: S.US.FAF
B155: 1 | C155: S.US.CST | D155: =IFERROR(RTD("cqg.rtd", ,"ContractData",C155, "PerCentNetLastTrade",, "T")/100,"") -> 0.0002070393375 | E155: 238 | F155: 238 | G155: S.US.CST | H155: 155 | I155: S.US.PBCT
B156: 1 | C156: S.US.CSX | D156: =IFERROR(RTD("cqg.rtd", ,"ContractData",C156, "PerCentNetLastTrade",, "T")/100,"") -> 0.005053567819 | E156: 105 | F156: 105 | G156: S.US.CSX | H156: 156 | I156: S.US.AFG
B157: 1 | C157: S.US.CFR | D157: =IFERROR(RTD("cqg.rtd", ,"ContractData",C157, "PerCentNetLastTrade",, "T")/100,"") -> 0.003505994119 | E157: 158 | F157: 158 | G157: S.US.CFR | H157: 157 | I157: S.US.COO
B158: 1 | C158: S.US.CVS | D158: =IFERROR(RTD("cqg.rtd", ,"ContractData",C158, "PerCentNetLastTrade",, "T")/100,"") -> 0.008777675881 | E158: 48 | F158: 48 | G158: S.US.CVS | H158: 158 | I158: S.US.CFR
B159: 1 | C159: S.US.CY | D159: =IFERROR(RTD("cqg.rtd", ,"ContractData",C159, "PerCentNetLastTrade",, "T")/100,"") -> 0.009382329945 | E159: 35 | F159: 35 | G159: S.US.CY | H159: 159 | I159: S.US.EIX
B160: 0 | C160: S.US.CONE | D160: =IFERROR(RTD("cqg.rtd", ,"ContractData",C160, "PerCentNetLastTrade",, "T")/100,"") -> -0.007692307692 | E160: 489 | F160: 489 | G160: S.US.CONE | H160: 160 | I160: S.US.BHI
B161: 1 | C161: S.US.DHI | D161: =IFERROR(RTD("cqg.rtd", ,"ContractData",C161, "PerCentNetLastTrade",, "T")/100,"") -> 0.0003043213634 | E161: 241 | F161: 241 | G161: S.US.DHI | H161: 161 | I161: S.US.CATY
B162: 0 | C162: S.US.DAN | D162: =IFERROR(RTD("cqg.rtd", ,"ContractData",C162, "PerCentNetLastTrade",, "T")/100,"") -> -0.0199488491 | E162: 603 | F162: 603 | G162: S.US.DAN | H162: 162 | I162: S.US.NI
B163: 1 | C163: S.US.DHR | D163: =IFERROR(RTD("cqg.rtd", ,"ContractData",C163, "PerCentNetLastTrade",, "T")/100,"") -> 0.001587301587 | E163: 200 | F163: 200 | G163: S.US.DHR | H163: 163 | I163: S.US.FL
B164: 0 | C164: S.US.DVA | D164: =IFERROR(RTD("cqg.rtd", ,"ContractData",C164, "PerCentNetLastTrade",, "T")/100,"") -> -0.0003127443315 | E164: 245 | F164: 245 | G164: S.US.DVA | H164: 164 | I164: S.US.TMK
B165: 0 | C165: S.US.DF | D165: =IFERROR(RTD("cqg.rtd", ,"ContractData",C165, "PerCentNetLastTrade",, "T")/100,"") -> -0.00437397485 | E165: 404 | F165: 404 | G165: S.US.DF | H165: 165 | I165: S.US.HPE
B166: 0 | C166: S.US.DECK | D166: =IFERROR(RTD("cqg.rtd", ,"ContractData",C166, "PerCentNetLastTrade",, "T")/100,"") -> -0.001202129487 | E166: 305 | F166: 305 | G166: S.US.DECK | H166: 166 | I166: S.US.TIF
B167: 0 | C167: S.US.DE | D167: =IFERROR(RTD("cqg.rtd", ,"ContractData",C167, "PerCentNetLastTrade",, "T")/100,"") -> -0.008831581736 | E167: 508 | F167: 508 | G167: S.US.DE | H167: 167 | I167: S.US.PRXL
B168: 0 | C168: S.US.DLPH | D168: =IFERROR(RTD("cqg.rtd", ,"ContractData",C168, "PerCentNetLastTrade",, "T")/100,"") -> -0.003286384977 | E168: 388 | F168: 388 | G168: S.US.DLPH | H168: 168 | I168: S.US.NWSA
B169: 1 | C169: S.US.DAL | D169: =IFERROR(RTD("cqg.rtd", ,"ContractData",C169, "PerCentNetLastTrade",, "T")/100,"") -> 0.006702974445 | E169: 75 | F169: 75 | G169: S.US.DAL | H169: 169 | I169: S.US.CINF
B170: 0 | C170: S.US.DLX | D170: =IFERROR(RTD("cqg.rtd", ,"ContractData",C170, "PerCentNetLastTrade",, "T")/100,"") -> -0.003123605533 | E170: 382 | F170: 382 | G170: S.US.DLX | H170: 170 | I170: S.US.HSNI
B171: 1 | C171: S.US.XRAY | D171: =IFERROR(RTD("cqg.rtd", ,"ContractData",C171, "PerCentNetLastTrade",, "T")/100,"") -> 0.00586797066 | E171: 84 | F171: 84 | G171: S.US.XRAY | H171: 171 | I171: S.US.VFC
B172: 0 | C172: S.US.DVN | D172: =IFERROR(RTD("cqg.rtd", ,"ContractData",C172, "PerCentNetLastTrade",, "T")/100,"") -> -0.002141900937 | E172: 336 | F172: 336 | G172: S.US.DVN | H172: 172 | I172: S.US.KN
B173: 0 | C173: S.US.DV | D173: =IFERROR(RTD("cqg.rtd", ,"ContractData",C173, "PerCentNetLastTrade",, "T")/100,"") -> -0.01643835616 | E173: 592 | F173: 592 | G173: S.US.DV | H173: 173 | I173: S.US.TROW
B174: 0 | C174: S.US.DO | D174: =IFERROR(RTD("cqg.rtd", ,"ContractData",C174, "PerCentNetLastTrade",, "T")/100,"") -> -0.007513148009 | E174: 484 | F174: 484 | G174: S.US.DO | H174: 174 | I174: S.US.PB
B175: 0 | C175: S.US.DBD | D175: =IFERROR(RTD("cqg.rtd", ,"ContractData",C175, "PerCentNetLastTrade",, "T")/100,"") -> -0.005813953488 | E175: 455 | F175: 455 | G175: S.US.DBD | H175: 175 | I175: S.US.DUK
B176: 0 | C176: S.US.DDS | D176: =IFERROR(RTD("cqg.rtd", ,"ContractData",C176, "PerCentNetLastTrade",, "T")/100,"") -> -0.0005989219405 | E176: 278 | F176: 278 | G176: S.US.DDS | H176: 176 | I176: S.US.PTEN
B177: 1 | C177: S.US.DISH | D177: =IFERROR(RTD("cqg.rtd", ,"ContractData",C177, "PerCentNetLastTrade",, "T")/100,"") -> 0.008284212203 | E177: 58 | F177: 58 | G177: S.US.DISH | H177: 177 | I177: S.US.LOW
B178: 1 | C178: S.US.D | D178: =IFERROR(RTD("cqg.rtd", ,"ContractData",C178, "PerCentNetLastTrade",, "T")/100,"") -> 0.001548786784 | E178: 208 | F178: 208 | G178: S.US.D | H178: 178 | I178: S.US.A
B179: 0 | C179: S.US.UFS | D179: =IFERROR(RTD("cqg.rtd", ,"ContractData",C179, "PerCentNetLastTrade",, "T")/100,"") -> -0.01338329764 | E179: 555 | F179: 555 | G179: S.US.UFS | H179: 179 | I179: S.US.PVTB
B180: 0 | C180: S.US.DCI | D180: =IFERROR(RTD("cqg.rtd", ,"ContractData",C180, "PerCentNetLastTrade",, "T")/100,"") -> -0.005217391304 | E180: 442 | F180: 442 | G180: S.US.DCI | H180: 180 | I180: S.US.ESS
B181: 0 | C181: S.US.DOV | D181: =IFERROR(RTD("cqg.rtd", ,"ContractData",C181, "PerCentNetLastTrade",, "T")/100,"") -> -0.001245174947 | E181: 309 | F181: 309 | G181: S.US.DOV | H181: 181 | I181: S.US.PCG
B182: 0 | C182: S.US.DOW | D182: =IFERROR(RTD("cqg.rtd", ,"ContractData",C182, "PerCentNetLastTrade",, "T")/100,"") -> -0.0006644518272 | E182: 281 | F182: 281 | G182: S.US.DOW | H182: 182 | I182: S.US.MNST
B183: 0 | C183: S.US.DPS | D183: =IFERROR(RTD("cqg.rtd", ,"ContractData",C183, "PerCentNetLastTrade",, "T")/100,"") -> -0.001550044287 | E183: 330 | F183: 330 | G183: S.US.DPS | H183: 183 | I183: S.US.FDS
B184: 0 | C184: S.US.DRQ | D184: =IFERROR(RTD("cqg.rtd", ,"ContractData",C184, "PerCentNetLastTrade",, "T")/100,"") -> -0.003816793893 | E184: 372 | F184: 372 | G184: S.US.DRQ | H184: 184 | I184: S.US.WFM
B185: 0 | C185: S.US.DST | D185: =IFERROR(RTD("cqg.rtd", ,"ContractData",C185, "PerCentNetLastTrade",, "T")/100,"") -> -0.002252064392 | E185: 349 | F185: 349 | G185: S.US.DST | H185: 185 | I185: S.US.MDLZ
B186: 0 | C186: S.US.DTE | D186: =IFERROR(RTD("cqg.rtd", ,"ContractData",C186, "PerCentNetLastTrade",, "T")/100,"") -> -0.002186935438 | E186: 346 | F186: 346 | G186: S.US.DTE | H186: 186 | I186: S.US.MAA
B187: 1 | C187: S.US.DUK | D187: =IFERROR(RTD("cqg.rtd", ,"ContractData",C187, "PerCentNetLastTrade",, "T")/100,"") -> 0.002778448901 | E187: 175 | F187: 175 | G187: S.US.DUK | H187: 187 | I187: S.US.WSO
B188: 0 | C188: S.US.DXC | D188: =IFERROR(RTD("cqg.rtd", ,"ContractData",C188, "PerCentNetLastTrade",, "T")/100,"") -> -0.0003808073115 | E188: 267 | F188: 267 | G188: S.US.DXC | H188: 188 | I188: S.US.FBHS
B189: 0 | C189: S.US.DY | D189: =IFERROR(RTD("cqg.rtd", ,"ContractData",C189, "PerCentNetLastTrade",, "T")/100,"") -> -0.002371466515 | E189: 345 | F189: 345 | G189: S.US.DY | H189: 189 | I189: S.US.PM
B190: 0 | C190: S.US.DD | D190: =IFERROR(RTD("cqg.rtd", ,"ContractData",C190, "PerCentNetLastTrade",, "T")/100,"") -> -0.0007836990596 | E190: 287 | F190: 287 | G190: S.US.DD | H190: 190 | I190: S.US.BWA
B191: 0 | C191: S.US.EWBC | D191: =IFERROR(RTD("cqg.rtd", ,"ContractData",C191, "PerCentNetLastTrade",, "T")/100,"") -> -0.0005604334018 | E191: 275 | F191: 275 | G191: S.US.EWBC | H191: 191 | I191: S.US.TRV
B192: 0 | C192: S.US.EMN | D192: =IFERROR(RTD("cqg.rtd", ,"ContractData",C192, "PerCentNetLastTrade",, "T")/100,"") -> -0.002200362413 | E192: 347 | F192: 347 | G192: S.US.EMN | H192: 192 | I192: S.US.SXT
B193: 0 | C193: S.US.ETN | D193: =IFERROR(RTD("cqg.rtd", ,"ContractData",C193, "PerCentNetLastTrade",, "T")/100,"") -> -0.004725649777 | E193: 430 | F193: 430 | G193: S.US.ETN | H193: 193 | I193: =IFERROR(VLOOKUP(H193,$F$1:$G$639,2,FALSE),"") -> S.US.HRB
B194: =IF(D194>=0,1,) -> 0 | C194: S.US.EV | D194: =IFERROR(RTD("cqg.rtd", ,"ContractData",C194, "PerCentNetLastTrade",, "T")/100,"") -> -0.004329990884 | E194: 418 | F194: =IFERROR(E194,"") -> 418 | G194: S.US.EV | H194: 194 | I194: S.US.COP
B195: 0 | C195: S.US.EBAY | D195: =IFERROR(RTD("cqg.rtd", ,"ContractData",C195, "PerCentNetLastTrade",, "T")/100,"") -> -0.002382370459 | E195: 367 | F195: 367 | G195: S.US.EBAY | H195: =H194+1 -> 195 | I195: S.US.ALL
B196: 1 | C196: S.US.ECL | D196: =IFERROR(RTD("cqg.rtd", ,"ContractData",C196, "PerCentNetLastTrade",, "T")/100,"") -> 0.001661523855 | E196: 203 | F196: 203 | G196: S.US.ECL | H196: 196 | I196: S.US.TGNA
B197: 0 | C197: S.US.EPC | D197: =IFERROR(RTD("cqg.rtd", ,"ContractData",C197, "PerCentNetLastTrade",, "T")/100,"") -> -0.0205824699 | E197: 610 | F197: 610 | G197: S.US.EPC | H197: 197 | I197: S.US.HON
B198: 1 | C198: S.US.EIX | D198: =IFERROR(RTD("cqg.rtd", ,"ContractData",C198, "PerCentNetLastTrade",, "T")/100,"") -> 0.003608712463 | E198: 159 | F198: 159 | G198: S.US.EIX | H198: 198 | I198: S.US.OSK
B199: 1 | C199: S.US.LLY | D199: =IFERROR(RTD("cqg.rtd", ,"ContractData",C199, "PerCentNetLastTrade",, "T")/100,"") -> 0.005119017149 | E199: 103 | F199: 103 | G199: S.US.LLY | H199: 199 | I199: S.US.LH
B200: 0 | C200: S.US.EME | D200: =IFERROR(RTD("cqg.rtd", ,"ContractData",C200, "PerCentNetLastTrade",, "T")/100,"") -> -0.008263149531 | E200: 505 | F200: 505 | G200: S.US.EME | H200: 200 | I200: S.US.DHR
... 465 more rows
